Cogmind - Beta 9.6 @@@ ROGUE MODE // 2020.07.21 @ 23:26:05 Player: Trione Result: Destroyed by S-43 Plague with Heavy Machine Gun Performance ------------- Evolutions (8) 4000 Regions Visited (38) 7600 Robots Destroyed (929) 4645 Value Destroyed (47274) 47274 Prototype IDs (238) 4760 Alien Tech Used (10) 2000 Bonus (23795) 23795 TOTAL SCORE: 94074 Bonus ------- Triggered High Security 500 High Alert Combat Kills 14781 Follower Combat Kills 1083 Network Hubs Disabled 400 Met Data Miner 300 Used Data Conduit 3000 Met Imprinter 300 Met Zhirov 300 Built Enhanced Grunts 300 A7 Reached Mainframe 300 Met R17 at Cetus 500 Scanned by Researcher 1000 Pursued by Intercept 4000 Friendly Fire -2969 Cogmind --------- Core Integrity 0/1450 Matter 8/300 Energy 260/260 System Corruption 34% Temperature Cool (0) Movement Immobile (Siege) Ox3 Location -2/Section 7 Parts ------- > --- POWER (2) -------- Micro Fission Core Light Quantum Reactor > --- PROPULSION (4) --- High-density Centrium Heavy Treads > --- UTILITY (14) ----- High-capacity Storage Unit High-capacity Storage Unit High-capacity Storage Unit High-capacity Storage Unit High-capacity Storage Unit High-capacity Storage Unit Long-range Sensor Array Experimental Signal Interpreter Advanced Armor Integrity Analyzer Centrium Heavy Armor Plating Heavy Regenerative Plating > --- WEAPON (4) ------- Linked Autogun Fusion Bomb Launcher > --- INVENTORY (52) --- Experimental Cooling System Advanced Coolant Injector Advanced Energy Well (800) Advanced Energy Well (800) Advanced Energy Well (800) Matter Compressor (0) Long-range Sensor Array Experimental Targeting Computer Experimental Armor Integrity Analyzer Quantum Capacitor Experimental Phase Shifter Experimental Weapon Shielding Heavy Reactive Plating Damper Plating SHELL Armor Experimental Focal Shield Thermal Barrier EM Dispersion Field Advanced Dynamic Insulation System Transdimensional Reconstructor Core Reset Matrix Subatomic Replicator Enhanced Gamma Rifle Cooled Nova Cannon Linked Autogun Linked Autogun Linked Autogun Linked Autogun Helical Railgun Helical Railgun Graviton Cannon Perforator Smartbomb Launcher Experimental Remote Datajack Molecular Deconstructor Core Stripper Power Sword Enhanced Force Lance Peak State ------------ > --- POWER ------------ Light Quantum Reactor Improved Quantum Reactor > --- PROPULSION ------- Experimental Biometal Heavy Treads High-density Centrium Heavy Treads > --- UTILITY ---------- High-capacity Storage Unit High-capacity Storage Unit High-capacity Storage Unit High-capacity Storage Unit High-capacity Storage Unit High-capacity Storage Unit Experimental Signal Interpreter Advanced Armor Integrity Analyzer Quantum Capacitor SHELL Armor Thermal Barrier > --- WEAPON ----------- Enhanced Gamma Rifle EMDS Power Sword > --- INVENTORY -------- High-density Centrium Heavy Treads Experimental Cooling System Advanced Coolant Injector Advanced Energy Well Advanced Energy Well Advanced Energy Well Matter Compressor Long-range Sensor Array Experimental Targeting Computer Experimental Armor Integrity Analyzer Precision Matter Filter Particle Accelerator Experimental Weapon Shielding Centrium Heavy Armor Plating Heavy Reactive Plating Damper Plating Heavy Regenerative Plating Experimental Focal Shield EM Dispersion Field Advanced Dynamic Insulation System Long-range Tractor Beam Core Reset Matrix Subatomic Replicator Enhanced Nova Cannon Cooled Nova Cannon Linked Autogun Linked Autogun Linked Autogun Linked Autogun Graviton Cannon Perforator Smartbomb Launcher Fusion Bomb Launcher Experimental Remote Datajack Molecular Deconstructor Core Stripper Enhanced Force Lance [Rating: 213] Favorites ----------- Power Compact Particle Reactor Engine Improved Deuterium Engine Power Core Micro Fission Core Reactor Compact Particle Reactor Propulsion Wheel Treads Armored Heavy Treads Leg Myomer Exoskeleton Wheel Wheel Utility High-capacity Storage Unit Device Long-range Sensor Array Storage High-capacity Storage Unit Processor Advanced Signal Interpreter Hackware Deep Network Scanner Protection Heavy Reactive Plating Artifact Matter Drive Weapon Power Sword Energy Gun Gamma Rifle Energy Cannon Long-range Proton Cannon Ballistic Gun Linked Autogun Ballistic Cannon Light Cannon Launcher Improved Grenade Launcher Special Weapon Experimental Remote Datajack Impact Weapon Core Stripper Slashing Weapon Power Sword Piercing Weapon Spear Special Melee Weapon Datajack Build | -11 -10 -10 -10 -9 -8 -7 -7 -7 -7 -7 -7 -6 -6 -6 -6 -6 -6 -6 -5 -5 -5 -5 -5 -5 -5 -5 -4 -4 -4 -4 -4 -4 -3 -3 -3 -2 -2 -2 ------- Run | Scr Mat Min Exi Min Mat Fac Was Fac Low Low Dat Pro Fac Was Fac Low Low Zio Pro Fac Was Fac Ext Cet Arc Hub Fac Was Fac Upp Upp Zhi Pro Res Tes Res Qua Sec Slots Evolved 16 | . . . . . 4 2 . . . . . . 2 . . . . . . 2 . . . . . . 2 . . . . . . 2 . 2 . . Power 1 | . . . . . . . . . . . . . 1 . . . . . . . . . . . . . . . . . . . . . . . . . Propulsion 1 | . . . . . . 1 . . . . . . . . . . . . . . . . . . . . . . . . . . . . . . . . Utility 12 | . . . . . 4 1 . . . . . . 1 . . . . . . 2 . . . . . . 2 . . . . . . 2 . . . . Weapon 2 | . . . . . . . . . . . . . . . . . . . . . . . . . . . . . . . . . . . . 2 . . Parts Attached 1711 | 7 18 4 4 24 74 70 17 73 25 29 21 10 150 13 131 8 1 58 26 35 21 32 38 19 3 27 64 4 150 2 . 7 7 89 114 9 184 143 Power 45 | 1 1 . . 2 5 1 1 . 1 . 1 . 3 1 4 . . . . . . . . 2 . . 1 . 3 . . 1 . . 1 . 9 7 Engine 14 | 1 1 . . 2 5 1 1 . . . . . 1 . 2 . . . . . . . . . . . . . . . . . . . . . . . Core 4 | . . . . . . . . . . . . . 2 . . . . . . . . . . . . . . . . . . . . . . . . 2 Reactor 27 | . . . . . . . . . 1 . 1 . . 1 2 . . . . . . . . 2 . . 1 . 3 . . 1 . . 1 . 9 5 Propulsion 138 | 2 2 . . 6 14 6 . 12 4 3 4 . 18 2 12 . . 1 . . 1 . 1 2 . 4 5 . 19 1 . . . 4 5 . 8 2 Treads 52 | . . . . 2 12 . . 2 1 1 2 . 5 1 1 . . . . . . . . 1 . 4 1 . 7 . . . . 2 2 . 6 2 Leg 1 | . . . . . . . . . . . . . . . . . . . . . . . . . . . . . . . . . . . 1 . . . Wheel 85 | 2 2 . . 4 2 6 . 10 3 2 2 . 13 1 11 . . 1 . . 1 . 1 1 . . 4 . 12 1 . . . 2 2 . 2 . Hover . | . . . . . . . . . . . . . . . . . . . . . . . . . . . . . . . . . . . . . . . Flight . | . . . . . . . . . . . . . . . . . . . . . . . . . . . . . . . . . . . . . . . Utility 842 | 2 4 . 4 . 15 36 6 29 13 14 7 6 70 3 54 6 1 34 14 21 8 19 22 7 1 10 38 3 81 . . 4 5 57 60 6 106 76 Device 532 | . . . . . 2 17 3 15 5 8 . 4 38 3 36 3 1 22 10 13 5 10 17 6 1 5 28 1 55 . . 2 3 40 42 5 70 62 Storage 51 | 2 3 . 4 . 4 . . 2 . . 2 . 1 . 1 . . 3 . 1 . 4 1 . . . 1 . 6 . . 1 . 1 1 . 11 2 Processor 7 | . . . . . . 1 1 1 . . . . . . . . . 1 . . . 1 . . . . . . . . . . . 1 . . 1 . Hackware 6 | . . . . . . 1 . . . . . . 1 . . . . . . . . . . . . . . . . . . . . 2 . . 2 . Protection 244 | . 1 . . . 9 17 2 11 8 6 5 2 30 . 17 3 . 8 4 7 3 4 4 1 . 5 9 2 20 . . 1 2 13 17 1 20 12 Artifact 2 | . . . . . . . . . . . . . . . . . . . . . . . . . . . . . . . . . . . . . 2 . Weapon 686 | 2 11 4 . 16 40 27 10 32 7 12 9 4 59 7 61 2 . 23 12 14 12 13 15 8 2 13 20 1 47 1 . 2 2 28 48 3 61 58 Energy Gun 81 | 2 4 1 . 6 12 . . . . . . . 2 . . . . . . . . . . 1 . . . . . . . . . 9 17 . 19 8 Energy Cannon 214 | . . . . 1 9 15 3 17 3 5 1 . 14 2 23 . . 8 4 6 3 8 7 2 2 4 10 . 22 . . . 1 5 7 2 16 14 Ballistic Gun 83 | . 2 . . . 4 1 1 3 . . . 1 17 1 6 . . 4 . 3 1 . . . . 1 1 1 6 . . . . 4 2 . 6 18 Ballistic Cannon 11 | . . 2 . 2 1 . . . . . . . . . . . . . . . . . . . . . . . . . . . . . 3 . 2 1 Launcher 77 | . 5 1 . 7 13 1 3 2 3 3 3 1 1 . 4 . . 7 3 1 . . . 1 . 1 1 . 4 . . . . 1 . . 4 7 Special Weapon 46 | . . . . . . 1 1 . . 1 1 . 3 3 4 1 . 2 2 1 5 1 2 1 . 1 1 . 1 . . 1 . . 5 1 5 2 Impact Weapon 2 | . . . . . . . . . . . . . . . . . . . . . . . . . . . . . . . . . . . . . 2 . Slashing Weapon 117 | . . . . . 1 7 . 1 1 2 2 1 12 1 17 1 . 2 1 2 2 3 4 2 . 4 6 . 11 1 . . 1 7 14 . 4 7 Piercing Weapon 45 | . . . . . . 2 1 9 . 1 1 1 7 . 3 . . . 2 1 1 1 1 1 . 2 1 . 3 . . 1 . 2 . . 3 1 Special Melee Weapon 10 | . . . . . . . 1 . . . 1 . 3 . 4 . . . . . . . 1 . . . . . . . . . . . . . . . Unidentified Prototypes 26 | . . . . . 5 . . . . 1 1 . 1 . . . . 1 . . . . . . . . . . . . . 2 . 1 7 . 6 1 Parts Lost 85 | . . . . 9 13 2 . 3 4 2 1 . 11 . 5 . . . . . . . . . . 1 . . 7 . . . . 1 . . 18 8 Power 15 | . . . . 2 2 . . . 1 . . . 1 . 2 . . . . . . . . . . . . . 2 . . . . . . . 3 2 Propulsion 32 | . . . . 3 2 1 . 3 2 . . . 6 . 3 . . . . . . . . . . 1 . . 3 . . . . 1 . . 5 2 Utility 17 | . . . . . 4 . . . . 1 . . 2 . . . . . . . . . . . . . . . . . . . . . . . 8 2 Weapon 21 | . . . . 4 5 1 . . 1 1 1 . 2 . . . . . . . . . . . . . . . 2 . . . . . . . 2 2 Highest Loss Streak 9 | . . . . 9 3 1 . 1 4 1 1 . 3 . 1 . . . . . . . . . . 1 . . 2 . . . . 1 . . 5 3 Average Slot Usage (%) 87 | . 98 100 96 76 94 93 84 99 99 98 80 91 86 85 89 91 87 84 86 87 92 91 85 87 83 82 83 85 87 95 95 96 99 87 85 83 80 75 Engine 2 | . 14 14 14 11 8 7 7 7 1 . . . 1 3 . . . . . . . . . . . . . . . . . . . . . . . . Reactor 6 | . . . . . . . . . 5 7 7 7 2 2 7 12 12 12 12 11 11 11 11 11 11 11 9 10 9 10 10 10 10 9 9 8 7 6 Treads 2 | . . . . 2 13 . . . . . 7 7 2 . . . . . . . . . . . . 1 7 . 1 . . . . 3 6 8 7 7 Wheel 15 | . 28 28 28 23 4 23 23 22 21 22 11 14 15 18 20 18 18 18 18 16 16 16 16 15 16 12 3 15 13 20 20 20 20 9 4 . . . Device 8 | . . . . . 8 7 7 8 9 8 4 6 10 15 11 10 6 5 6 6 15 13 5 5 5 3 11 9 9 10 10 10 9 12 12 11 7 8 Storage 25 | . 23 28 24 14 23 23 23 26 30 29 20 28 25 25 25 25 25 21 25 27 27 26 27 27 27 27 25 30 30 30 30 31 35 31 31 29 27 25 Processor 6 | . . . . . . 7 . 6 7 7 7 7 6 6 6 6 6 8 6 5 5 6 11 11 11 11 10 10 10 10 10 10 10 9 9 8 8 8 Protection 6 | . 3 . . . 17 10 6 9 5 5 8 7 3 . 2 6 6 6 5 9 4 4 4 5 5 4 7 5 4 5 5 5 5 3 4 4 4 5 Energy Cannon 2 | . . . . . 4 1 . 5 3 1 2 4 1 . 3 . . . 2 1 . 3 4 1 4 1 3 . 3 5 5 3 2 . . 3 2 1 Ballistic Gun 1 | . 3 . . . 4 . . 1 . . . 2 4 . . . . 1 . . . . . . . . . 4 . . . . . 1 . . . 4 Special Weapon 1 | . . . . . . . 6 . . . . . . 5 . 5 6 3 3 . 3 1 . . . 1 . . . . . 4 2 . 1 3 2 . Slashing Weapon 2 | . . . . . 1 5 . 1 2 5 1 2 4 . 3 6 6 3 5 4 3 4 2 4 . 1 3 . 2 4 5 . 4 1 2 4 3 2 Naked Turns . | . . . . . . . . . . . . . . . . . . . . . . . . . . . . . . . . . . . . . . . Heaviest Build 343 | 17 59 59 91 97 191 137 165 173 193 179 181 172 203 200 211 195 195 201 203 226 227 235 230 229 241 241 247 250 299 277 277 279 310 335 317 302 343 305 Greatest Support 180 | 26 26 20 20 40 45 44 38 70 70 70 70 24 70 54 80 54 54 56 56 76 76 70 52 52 52 160 170 54 100 78 72 72 72 150 150 150 180 180 Greatest Overweight (x) 83 | . 2 2 4 8 7 3 51 8 5 4 7 7 8 3 12 3 3 3 3 4 4 4 4 9 4 4 8 83 11 3 3 5 5 12 7 2 26 1 Average Overweight (x) 3 | . 1 2 2 4 3 2 24 3 4 3 4 6 2 2 2 2 3 2 2 2 2 2 4 4 4 3 1 15 4 3 3 3 3 4 3 1 3 1 Largest Inventory Capacity 60 | 8 18 18 24 24 48 28 28 36 36 36 36 36 42 36 36 36 36 36 36 42 42 42 42 42 42 42 48 48 52 52 52 60 60 60 60 60 60 52 Average Capacity 38 | 6 15 18 20 24 29 28 28 31 36 36 27 36 36 36 36 36 36 31 36 42 42 41 42 42 42 42 42 48 51 52 52 53 60 60 60 60 57 52 Most Carried 60 | 5 18 18 24 24 32 28 28 36 36 36 36 36 36 36 36 36 36 36 36 42 42 42 42 42 42 42 48 48 52 52 52 58 58 60 60 60 60 52 Average Carried 38 | 2 14 17 18 22 27 27 27 30 34 35 25 35 35 35 35 35 36 31 35 40 41 40 41 41 41 41 42 47 50 52 51 53 57 58 59 57 56 51 Final Capacity 60 | 8 18 18 24 24 28 28 28 36 36 36 36 36 36 36 36 36 36 36 36 42 42 42 42 42 42 42 48 48 52 52 52 60 60 60 60 60 52 52 Final Carried 60 | 5 18 18 24 19 28 28 27 36 35 34 35 36 36 36 36 36 36 36 36 42 42 42 42 42 42 42 48 48 52 52 52 58 58 60 59 59 52 52 Class Distribution -------------------- 92% | Hauler-Mutant Dominant Class ---------------- Mutant | -10/Materials Mutant | -10/Mines Hauler-Mutant | -10/Exiles Hauler-Mutant | -9/Mines Hauler-Mutant | -8/Materials Hauler-Mutant | -7/Factory Hauler-Mutant | -7/Waste Hauler-Mutant | -7/Factory Hauler-Mutant | -7/Lower Caves Hauler-Mutant | -7/Lower Caves Hauler-Mutant | -7/Data Miner Hauler-Mutant | -6/Proximity Caves Hauler-Mutant | -6/Factory Hauler-Mutant | -6/Waste Hauler-Mutant | -6/Factory Hauler-Mutant | -6/Lower Caves Hauler-Mutant | -6/Lower Caves Hauler-Mutant | -6/Zion Hauler-Mutant | -5/Proximity Caves Hauler-Mutant | -5/Factory Hauler-Mutant | -5/Waste Hauler-Mutant | -5/Factory Hauler-Mutant | -5/Extension Hauler-Mutant | -5/Cetus Hauler-Mutant | -5/Archives Hauler-Mutant | -5/Hub_04(d) Hauler-Mutant | -4/Factory Hauler-Mutant | -4/Waste Hauler-Mutant | -4/Factory Hauler-Mutant | -4/Upper Caves Hauler-Mutant | -4/Upper Caves Hauler-Mutant | -4/Zhirov Hauler-Mutant | -3/Proximity Caves Hauler-Mutant | -3/Research Hauler-Mutant | -3/Testing Hauler-Mutant | -2/Research Hauler-Mutant | -2/Quarantine Hauler-Mutant | -2/Section 7 Resources | -11 -10 -10 -10 -9 -8 -7 -7 -7 -7 -7 -7 -6 -6 -6 -6 -6 -6 -6 -5 -5 -5 -5 -5 -5 -5 -5 -4 -4 -4 -4 -4 -4 -3 -3 -3 -2 -2 -2 ----------- Run | Scr Mat Min Exi Min Mat Fac Was Fac Low Low Dat Pro Fac Was Fac Low Low Zio Pro Fac Was Fac Ext Cet Arc Hub Fac Was Fac Upp Upp Zhi Pro Res Tes Res Qua Sec Matter Collected 36435 | 270 345 132 . 233 1754 688 312 1355 319 361 208 241 2831 481 2473 102 30 2511 474 648 342 366 1106 230 100 806 1317 510 3794 114 . 136 . 1779 1732 428 3365 4542 Remotely 12902 | . . . . . . . . . . . . . 744 481 1385 . . 612 155 436 342 189 254 . . 379 997 . 1813 . . . . 320 288 178 1520 2809 Salvage Created 52181 | 99 517 92 . 191 2752 1546 1827 1881 595 427 434 113 2717 570 3466 106 52 1356 557 791 955 418 1596 327 231 1610 2067 1584 5025 112 . 235 . 3114 2270 178 4948 7422 Parts 1937 | 10 34 10 . 22 127 68 19 83 32 18 20 4 120 5 137 4 1 99 11 35 12 24 52 11 8 67 62 19 160 2 . 3 . 128 77 4 193 256 Haulers Intercepted 13 | . 2 . . . 5 1 . . . . . . . . . . . . . . . . 1 . . 1 . . 2 . . . . 1 . . . . Recyclers Shooed 58 | . 4 . . 1 4 7 . 2 . . . . 11 . 4 . . . . 1 . 2 . . . 3 2 . 6 . . . . 9 . . 1 1 Parts Field Recycled . | . . . . . . . . . . . . . . . . . . . . . . . . . . . . . . . . . . . . . . . Retrieved Matter . | . . . . . . . . . . . . . . . . . . . . . . . . . . . . . . . . . . . . . . . Parts Self-Destructed 40 | . . . . . . . . . 15 6 . 1 . . . . . 3 4 . . . . . . . . . . . 10 1 . . . . . . Prevented 26 | . . . . . . . . . 20 2 . 3 . . . . . . 1 . . . . . . . . . . . . . . . . . . . Kills | -11 -10 -10 -10 -9 -8 -7 -7 -7 -7 -7 -7 -6 -6 -6 -6 -6 -6 -6 -5 -5 -5 -5 -5 -5 -5 -5 -4 -4 -4 -4 -4 -4 -3 -3 -3 -2 -2 -2 ------- Run | Scr Mat Min Exi Min Mat Fac Was Fac Low Low Dat Pro Fac Was Fac Low Low Zio Pro Fac Was Fac Ext Cet Arc Hub Fac Was Fac Upp Upp Zhi Pro Res Tes Res Qua Sec Combat Hostiles Destroyed 620 | . 14 3 . 25 47 13 6 24 12 9 4 2 29 . 24 . . 10 14 13 1 4 13 8 2 11 16 6 53 . . . . 32 26 2 64 133 Melee 39 | . . . . . 3 5 . 1 . . . . 7 . 1 . . . . . . 2 2 . . . 1 . 4 . . . . 5 . . 8 . Guns 156 | . 3 . . . 12 . . 5 . . . 1 16 . 7 . . 4 . 4 . . . . . . 4 6 15 . . . . 17 14 . 15 33 Cannons 110 | . . . . 1 7 8 4 6 1 1 . . 4 . 9 . . 1 1 1 . . 5 2 1 2 1 . 16 . . . . 2 8 . 12 17 AOE 202 | . 11 3 . 24 22 . 2 4 8 5 . . 1 . 4 . . 3 12 8 . . . 4 . . 3 . 10 . . . . 3 1 . 8 66 Classes Destroyed 33 | 2 6 . . 2 6 1 1 1 1 1 . . . . . 1 . 5 . . . . . . . . . . . . . . . . 2 . 1 3 Worker 62 | . . . . . 6 5 . 5 . . . . 6 . 6 . . . . 7 . 1 . . . 6 . . 10 . . . . . 3 . 2 5 Builder 16 | . 1 . . 1 4 . . . . . . . 1 . 1 . . . . . . 1 . . . . . . 6 . . . . . . . 1 . Tunneler 7 | 2 . . . . 3 1 . . . . . . . . . . . . . . . . . . . 1 . . . . . . . . . . . . Hauler 13 | . 2 . . . 5 1 . . . . . . . . . . . . . . . . 1 . . 1 . . 2 . . . . 1 . . . . Recycler 76 | 1 2 1 . 1 7 8 . 5 . . . . 4 . 13 . . . . 2 . 1 4 . . 3 6 . 8 . . . . 5 2 . 2 1 Carrier 1 | . . . . . . . . . . . . . . . . . . . . . . . . . . . . . . . . . . . . . . 1 Minesweeper 1 | . . . . . . . . . 1 . . . . . . . . . . . . . . . . . . . . . . . . . . . . . Mechanic 7 | . . . . . . . . 1 . . . . 1 . . . . . . . . . . . . . 2 . . . . . . . . . . 3 Operator 3 | . 1 . . . 1 . . . . . . . . . . . . . . . . . . . 1 . . . . . . . . . . . . . Watcher 43 | . 2 . . . 5 4 . 4 . . . . 2 . 6 . . . . 2 . . 2 . . 1 1 . 8 . . . . . 1 . 3 2 Swarmer 78 | . 6 3 . 10 3 . . 7 5 . . . . . 4 . . . 5 9 . . 1 4 . . . . 7 . . . . . 4 . 6 4 Saboteur 9 | . . . . . . . . . . . . . . . . . . . . . . . . . . . . . . . . . . . . . . 9 Grunt 177 | . 8 . . . 24 6 . 8 2 . . . 5 . 3 . . . 4 2 . . 8 . . 2 5 . 17 . . . . 5 4 1 16 57 Brawler 17 | . . . . . 1 . . 3 1 . . . . . . . . . 2 . . . . . . . . . 1 . . . . 1 . . . 8 Duelist 21 | . . . . . 2 . . . 3 1 . . . . . . . . . . . . . . . . . . 1 . . . . 1 . . 1 12 Protector 8 | . . . . . 2 . . . . . . . . . . . . . . . . . . . . 2 . . 1 . . . . . . . . 3 Researcher 8 | . . . . . . . . . . . . . . . . . . . . . . . . . . . . . . . . . . . 2 . 1 5 Sentry 43 | . . . . . 12 2 . 3 1 . . . 4 . 5 . . . . . . 2 2 . 2 1 2 . 1 . . . . 2 . 1 . 3 Demolisher 1 | . . . . 1 . . . . . . . . . . . . . . . . . . . . . . . . . . . . . . . . . . Specialist 7 | . . . . . . . . . . 2 . . . . . . . . . . . . . . . . . . . . . . . . . . 5 . Hunter 34 | . . . . . 3 1 . . . 1 . 1 . . 2 . . . 3 . . . . . . . 4 . 4 . . . . . 2 . 5 8 Programmer 87 | . . . . . . 4 . 3 . 1 . 1 10 . 4 . . . . 2 . 2 . . . . 1 . 7 . . . . 15 11 . 10 16 Q-Series 8 | . . . . . . . . . . . . . . . . . . . . . . . . . . . . . . . . . . . 1 . 7 . Behemoth 2 | . . . . . . . . . . . . . . . . . . . . . . . 2 . . . . . . . . . . . . . . . Compactor 13 | . . . . . . . 6 . . . . . . . . . . . . . 1 . . . . . . 6 . . . . . . . . . . Cetus Guard 4 | . . . . . . . . . . . . . . . . . . . . . . . . 4 . . . . . . . . . . . . . . S7 Guard 1 | . . . . . . . . . . . . . . . . . . . . . . . . . . . . . . . . . . . . . . 1 Enhanced Grunt 4 | . . . . . . . . . . . 4 . . . . . . . . . . . . . . . . . . . . . . . . . . . Lightning 6 | . . . . . . . . . . . . . . . . . . . . . . . . . . 6 . . . . . . . . . . . . Tracker 37 | . . . . . . . . . . . . . 6 . 3 . . . . . . . . . . . 2 . 7 . . . . 4 2 . 8 5 Combat Programmer 32 | . . . . . . . . . . . . . 4 . 3 . . . . . . . . . . . 2 . 7 . . . . 4 2 . 5 5 Investigator 1 | . . . . . . . . . . . . . . . . . . . . . . . . . . . . . . . . . . . . . . 1 Executioner 2 | . . . . . . . . . . . . . . . . . . . . . . . . . . . . . . . . . . . . . . 2 Fortress 1 | . . . . . . . . . . . . . . . . . . . . . . . . . . . . . . . . . . . . . 1 . Zionite 50 | . . . . . . . . . . . . . . . . . . 50 . . . . . . . . . . . . . . . . . . . . Decomposer 3 | . . . . . . . . . . . . . . . . 3 . . . . . . . . . . . . . . . . . . . . . . Samaritan 4 | . . . . . . . . . . . . . . . . 1 1 . . . . . . . . . . . . 2 . . . . . . . . Tinkerer 4 | . . . . . . . . . . . . . . . . . . 4 . . . . . . . . . . . . . . . . . . . . Assembled 14 | . . . . 14 . . . . . . . . . . . . . . . . . . . . . . . . . . . . . . . . . . Wasp 1 | . . . . . . . . . . . . . . . . . . 1 . . . . . . . . . . . . . . . . . . . . Thug 9 | . . 1 . . . . . . . 4 . . . . . . . 4 . . . . . . . . . . . . . . . . . . . . Butcher 5 | . . . . . . . . . . . . . . . . . . 5 . . . . . . . . . . . . . . . . . . . . Marauder 2 | . . . . . . . . . . . . . . . . . . 2 . . . . . . . . . . . . . . . . . . . . Fireman 1 | . . . . . . . . . . . . . . . . . . 1 . . . . . . . . . . . . . . . . . . . . Mutant 4 | . . . . . . . . . . . . . . . . . . 4 . . . . . . . . . . . . . . . . . . . . Best Kill Streak 46 | 3 5 4 . 13 13 5 2 11 7 5 4 2 4 . 9 . . 19 6 8 1 2 4 4 2 7 9 3 12 . . . . 7 7 1 6 46 Combat Bots Only 38 | . 3 3 . 12 9 4 2 10 8 5 4 2 4 . 4 . . 3 6 8 1 2 4 4 1 4 7 3 7 . . . . 7 7 1 6 38 Max Kills in Single Turn 7 | 1 2 2 . 5 3 1 1 3 3 2 1 1 2 . 3 1 1 5 3 4 1 1 2 2 1 3 2 1 4 1 . . . 2 2 1 3 7 Gunslinging 1 | . . . . . 1 . . . . . . . . . . . . . . . . . . . . . . . . . . . . . . . . . Exploded 5 | . 2 2 . 4 3 . 1 3 3 2 . . 1 . 3 . . 1 3 4 . . . 2 . . 2 . 2 . . . . 2 1 . 3 5 Melee 1 | . . . . . 1 1 . 1 . . . . 1 . 1 . . . . . . 1 1 . . . 1 . 1 . . . . 1 . . 1 . Uniques/NPCs Destroyed 2 | . . . . . . . . . . . 1 . . . . . . 1 . . . . . . . . . . . . . . . . . . . . Data Miner (-7/Data Miner) Imprinter (-6/Zion) Combat | -11 -10 -10 -10 -9 -8 -7 -7 -7 -7 -7 -7 -6 -6 -6 -6 -6 -6 -6 -5 -5 -5 -5 -5 -5 -5 -5 -4 -4 -4 -4 -4 -4 -3 -3 -3 -2 -2 -2 -------- Run | Scr Mat Min Exi Min Mat Fac Was Fac Low Low Dat Pro Fac Was Fac Low Low Zio Pro Fac Was Fac Ext Cet Arc Hub Fac Was Fac Upp Upp Zhi Pro Res Tes Res Qua Sec Damage Taken 43707 | . 219 43 . 977 2700 967 . 1092 898 982 514 239 4222 . 2356 . . 356 320 66 . 2 569 84 41 588 971 . 3504 . . . . 1372 1434 . 10084 9107 Core 2691 | . . . . 94 251 114 . 67 88 88 . 31 307 . 151 . . 63 13 . . . 37 . . 12 15 . 198 . . . . 112 44 . 501 505 Absorbed by Shields 5988 | . . . . . . . . . . . . . . . . . . . . . . . 56 86 . . 718 . 398 . . . . 580 982 . 2950 218 Reduced by Siege Mode 667 | . . . . . . . . . . 2 . . 151 . 14 . . . . . . . . 2 . . 7 . 15 . . . . 60 70 . 175 171 Core Remaining (%) 70 | 100 . . . 62 54 . . . . . . 44 . . . . . . 37 . . . . . . 95 . . . . . . 81 . 88 . . . Volleys Fired 2645 | 5 47 10 . 27 126 39 38 60 24 22 11 11 169 4 178 6 . 158 63 38 12 63 81 26 14 58 85 48 271 4 . 8 25 208 158 15 264 269 Largest 3 | 2 2 2 . 2 2 2 2 2 1 2 1 2 2 1 2 1 . 1 1 1 1 1 1 1 1 1 1 1 1 1 . 1 1 2 2 1 3 2 Hottest 240 | 90 90 74 . 105 130 140 140 145 69 145 39 93 160 88 88 40 . 80 88 81 88 98 98 240 81 81 98 98 98 81 . 40 98 150 150 70 236 230 Shots Fired 3268 | 10 77 18 . 37 230 62 75 97 24 24 11 18 244 4 178 6 . 158 63 38 12 63 81 26 14 58 85 48 270 4 . 8 25 243 221 15 349 372 Gun 1561 | 10 62 . . 6 132 . . 22 . . . 7 191 . 56 . . 51 . 16 . . . 1 . . 33 42 91 . . . . 223 189 . 193 236 Cannon 1275 | . . 16 . 6 59 60 69 68 13 8 . 8 45 2 103 . . 29 42 18 6 63 65 21 14 23 47 6 167 4 . . 25 18 28 15 130 97 Launcher 316 | . 15 2 . 25 39 1 6 7 11 15 11 3 2 . 7 . . 77 21 3 . . . 2 . 2 4 . 12 . . . . 2 . . 10 39 Special 116 | . . . . . . 1 . . . 1 . . 6 2 12 6 . 1 . 1 6 . 16 2 . 33 1 . . . . 8 . . 4 . 16 . Kinetic 972 | . 15 16 . 4 43 . . 22 . . . 7 182 . 56 . . 51 . 16 . . . . . . 33 42 91 . . . . 72 50 . 66 206 Thermal 643 | 5 18 . . 2 142 40 68 23 . 4 . 8 16 . . . . 2 36 6 . 55 10 1 . . 18 6 53 . . . 25 10 10 6 55 24 Explosive 259 | . 15 2 . 25 34 1 6 . 3 8 . . . . 3 . . 77 21 3 . . . 2 . 2 . . 6 . . . . 2 . . 10 39 Electromagnetic 1278 | 5 29 . . 6 11 20 1 52 21 11 11 3 40 2 107 . . 27 6 12 6 8 55 21 14 23 33 . 120 4 . . . 159 157 9 202 103 Robot Hit Streak 73 | 3 7 2 . 4 24 16 11 18 10 5 13 20 23 5 16 9 . 27 29 12 22 3 21 18 2 8 48 67 47 1 . 8 . 73 48 9 55 37 Robot Miss Streak 5 | 1 3 3 . 2 4 2 1 5 1 1 . 1 4 1 4 . . 2 1 2 . 2 2 1 1 3 2 1 4 2 . . . 3 3 . 3 2 Penetration Max 3 | . . . . . . . . . . . . . 1 . 1 . . . . . . . 1 . . 1 . . 1 . . . . 1 1 . 1 3 Secondary Targets 12 | . . . . . 3 . . . . . . . . . . . . . . . . . . . . . . . . . . . . 1 2 . . 6 Max Gunslinging Chain 1 | . . . . . 1 . . . . . . . . . . . . . . . . . . . . . . . . . . . . 1 1 . . 1 Capacitor 114 | . . . . . . . . . . . . . . . . . . . . . . . . . . . . . 32 . . . . 25 . 9 24 24 Shots Hit Robots 2547 | 7 41 7 . 11 153 86 57 71 17 14 13 13 233 3 153 10 2 94 26 32 10 11 63 18 3 39 66 33 222 5 . 11 . 247 185 7 305 279 Core Hits 1820 | 4 34 6 . 50 137 36 18 54 21 19 11 3 107 2 88 3 1 88 32 28 . 8 20 14 4 14 48 24 176 2 . 2 . 118 92 2 132 422 Critical Hits 173 | . . . . . . 3 . . . . . . 38 . 8 . . 6 1 2 1 1 9 1 3 1 4 . 12 . . . . 2 24 2 13 42 Critical Kills 64 | . . . . . . 2 . . . . . . 17 . 3 . . 2 . 1 . . 2 . 2 1 1 . 6 . . . . . 9 . 4 14 Critical Parts Destroyed 96 | . . . . . . 1 . . . . . . 16 . 3 . . 4 1 1 1 1 5 1 1 . 3 . 3 . . . . 1 15 2 9 28 Melee Attacks 1029 | . . . . . 16 117 4 57 13 16 3 20 166 2 70 11 19 106 30 31 . 15 18 5 . 13 29 . 48 23 22 3 13 43 30 3 77 6 Kinetic 8 | . . . . . . . . . . . . . . . . . . . . . . . . . . . . . . . . . . . . . 8 . Impact . | . . . . . . . . . . . . . . . . . . . . . . . . . . . . . . . . . . . . . . . Slashing 748 | . . . . . 16 115 . 1 1 11 1 6 110 2 50 11 19 106 30 27 . 13 12 5 . 9 11 . 38 23 22 . 13 19 30 3 38 6 Piercing 252 | . . . . . . 2 4 56 12 5 1 14 54 . 6 . . . . 4 . 2 2 . . 4 18 . 10 . . 3 . 24 . . 31 . Sneak Attacks 93 | . . . . . 4 15 . 3 1 . 3 . 10 . 6 4 2 14 . 7 . 2 5 . . 2 1 . 7 4 . . . . 3 . . . Combat Hostiles 3 | . . . . . . 1 . . . . . . . . 1 . . . . . . 1 . . . . . . . . . . . . . . . . Follow-up Attacks 25 | . . . . . . . . . . . 1 . 5 . . . . . . 1 . 1 . . . . 4 . 1 . . . . 5 . . 7 . Damage Inflicted 132678 | 101 1273 355 . 1547 7802 4818 1855 2961 1341 1185 679 485 5304 60 5836 602 254 8836 3764 2557 212 713 2583 799 375 1736 3897 1860 13044 498 . 288 . 7149 4387 206 13230 30086 Guns 37180 | 101 362 . . 55 1549 . . 232 . . . 148 1864 . 1995 . . 1584 . 696 . . . . . . 1452 1860 3632 . . . . 4904 3438 . 4829 8479 Cannons 29317 | . . 153 . 65 835 1032 1457 1144 224 150 . 251 834 60 2288 . . 829 217 422 212 411 1988 517 375 856 1097 . 4942 42 . . . 600 420 206 4107 3583 Explosions 45231 | . 911 202 . 1427 4202 39 398 1282 912 1006 470 86 575 . 904 . . 4665 1976 578 . . 81 282 . 621 928 . 3019 . . . . 486 108 . 2049 18024 Melee 20900 | . . . . . 1216 3747 . 303 205 29 209 . 2031 . 649 602 254 1758 1571 861 . 302 514 . . 259 420 . 1451 456 . 288 . 1159 421 . 2195 . Ramming 50 | . . . . . . . . . . . . . . . . . . . . . . . . . . . . . . . . . . . . . 50 . Kinetic 30257 | . 56 153 . 48 300 . . 232 . . . 148 1763 . 1995 . . 1584 . 696 . . . . . . 1452 1860 3632 . . . . 3277 2016 . 3155 7890 Thermal 9778 | 63 249 . . 43 2019 621 1455 269 173 79 74 251 787 . 155 . . . . 54 . 223 81 . . . 441 . 1013 . . . . 166 108 . 1391 63 Explosive 37674 | . 762 202 . 1401 3469 39 398 103 336 663 . . . . 340 . . 4665 1976 578 . . . 282 . 56 . . 2191 . . . . 320 . . 1932 17961 Electromagnetic 34393 | 38 206 . . 55 798 411 2 2054 627 414 396 86 723 60 2697 . . 829 217 368 212 188 1988 517 375 1421 1584 . 4757 42 . . . 2227 1842 206 4881 4172 Impact . | . . . . . . . . . . . . . . . . . . . . . . . . . . . . . . . . . . . . . . . Slashing 15924 | . . . . . 1216 3724 . . 141 29 144 . 1085 . 501 602 254 1758 1571 769 . 180 458 . . 156 116 . 1179 456 . . . 580 421 . 584 . Piercing 4602 | . . . . . . 23 . 303 64 . 65 . 946 . 148 . . . . 92 . 122 56 . . 103 304 . 272 . . 288 . 579 . . 1237 . Highest Corruption 34 | . . . . . 1 2 30 2 . 4 . 2 6 1 5 1 . . . . . . . . . 1 2 . 5 . . . . 6 5 . 24 34 Average Corruption 8 | . . . . . 1 1 16 1 . 2 . 1 2 1 2 1 . . . . . . . . . 1 1 . 2 . . . . 2 2 . 14 26 Corruption Purged 107 | . . . . . . 4 41 4 . 4 . . 14 . 6 1 . . . . . . . . . . 2 . 9 . . . . 8 6 . 8 . Effects 828 | . . . . . 13 9 251 5 . 16 . 5 57 2 39 4 . . . . . . . . . 1 3 . 26 . . . . 36 12 . 119 230 Message Errors 161 | . . . . . 8 1 67 . . 5 . 1 15 2 10 3 . . . . . . . . . 1 . . 4 . . . . 8 4 . 13 19 Matter Fused 116 | . . . . . . . 46 . . 4 . . 9 . 10 . . . . . . . . . . . . . 7 . . . . 3 1 . 22 14 Heat Flow Errors 72 | . . . . . . 2 30 . . 1 . 1 8 . 4 . . . . . . . . . . . . . 2 . . . . 3 2 . 8 11 Energy Discharges 87 | . . . . . 3 1 34 2 . 1 . 2 9 . 3 . . . . . . . . . . . 2 . . . . . . 3 1 . 8 18 Parts Rejected 8 | . . . . . . . 1 . . . . . . . . . . . . . . . . . . . . . . . . . . . . . 2 5 Data Loss (minor) 115 | . . . . . . 4 37 2 . 4 . 1 7 . 6 . . . . . . . . . . . 1 . 5 . . . . 4 1 . 23 20 Data Loss (major) 25 | . . . . . . . 15 . . . . . 1 . 1 . . . . . . . . . . . . . . . . . . . . . 2 6 Misfires 9 | . . . . . . . 1 . . . . . . . . . . . . . . . . . . . . . . . . . . . . . 5 3 Alerts 9 | . . . . . . . 5 . . . . . . . . . . . . . . . . . . . . . . . . . . . . . . 4 Misdirections 29 | . . . . . . . 9 . . . . . . . . . . . . . . . . . . . . . . . . . . . . . 3 17 Targeting Errors 159 | . . . . . 2 1 5 1 . 1 . . 7 . 4 1 . . . . . . . . . . . . 7 . . . . 12 3 . 29 86 Weapon Failures 38 | . . . . . . . 1 . . . . . 1 . 1 . . . . . . . . . . . . . 1 . . . . 3 . . 4 27 Overload Shots 3 | . . . . . . . . . . . . . . . . . . . . . . . . 1 . . . . . . . . . . . . . 2 Overflow Damage 8108 | . 36 5 . 64 689 819 . 122 55 11 5 34 408 . 299 140 92 810 891 140 . 14 236 . 4 86 136 . 991 255 . 98 . 106 . . 504 1058 Projectiles 1826 | . . . . . 14 6 . 42 . . . 34 4 . 241 . . . . 62 . 14 211 . 4 53 57 . 377 36 . . . 53 . . 398 220 Explosions 1815 | . 36 5 . 64 153 . . 15 32 11 . . 41 . 45 . . 215 137 10 . . . . . 33 58 . 96 . . . . . . . 26 838 Melee 4467 | . . . . . 522 813 . 65 23 . 5 . 363 . 13 140 92 595 754 68 . . 25 . . . 21 . 518 219 . 98 . 53 . . 80 . Knockbacks 9 | . . . . 1 . . . . . . . . . . . . . . . . . . . . . . . . . . . . . . . . 1 7 Impact . | . . . . . . . . . . . . . . . . . . . . . . . . . . . . . . . . . . . . . . . Kinetic 9 | . . . . 1 . . . . . . . . . . . . . . . . . . . . . . . . . . . . . . . . 1 7 Secondary . | . . . . . . . . . . . . . . . . . . . . . . . . . . . . . . . . . . . . . . . Self-Inflicted Damage 1121 | . 49 . . 39 163 . . 51 . 71 . . 212 . 39 . . . 31 . . . . 31 . 19 . . 56 . . . . 59 25 . . 276 Shots 42 | . 2 . . 3 4 . . 3 . 4 . . 5 . 5 . . . 1 . . . . 1 . 2 . . 2 . . . . 2 1 . . 7 Rammed 2 | . . . . . . . . . . . . . . . . . . . . . . . . . . . . . . . . . . . . . 2 . Targets Rammed 3 | . . . . . . . . . . . . . . . . . . . . . . . . . . . . . . . . . . . . . 3 . Kicked . | . . . . . . . . . . . . . . . . . . . . . . . . . . . . . . . . . . . . . . . Crushed 1 | . . . . . . . . . . . . . . . . . . . . . . . . . . . . . . . . . . . . . 1 . Highest Temperature 448 | 80 130 84 . 90 448 239 286 321 374 149 241 252 417 . 355 177 . 306 210 228 145 296 274 348 . 395 22 246 447 156 . 104 . 363 382 233 331 411 Average Temperature 93 | 35 36 38 . 35 79 60 104 107 139 60 123 108 111 . 119 93 . 75 73 82 62 95 95 114 . 133 12 148 93 82 . 46 . 100 94 84 77 73 Received Heat Transfer 4829 | . 42 . . 40 891 324 . 207 144 162 66 . 189 . 174 . . 9 36 9 . . 144 . . 51 17 . 389 . . . . 42 177 . 731 985 Effects 39 | . . . . . 7 . 1 1 . . . . 8 . 6 . . . . 3 . . 4 . . 2 . . 2 . . . . 1 3 . 1 . Shutdowns 6 | . . . . . 2 . . . . . . . 1 . . . . . . . . . . . . 1 . . 1 . . . . 1 . . . . Energy Bleed 6 | . . . . . 1 . 1 1 . . . . . . 1 . . . . . . . . . . . . . 1 . . . . . 1 . . . Interference 22 | . . . . . 1 . . . . . . . 7 . 5 . . . . 3 . . 4 . . . . . . . . . . . 2 . . . Matter Decay 3 | . . . . . 2 . . . . . . . . . . . . . . . . . . . . . . . . . . . . . . . 1 . Short Circuit 1 | . . . . . . . . . . . . . . . . . . . . . . . . . . 1 . . . . . . . . . . . . Damage (minor) 1 | . . . . . 1 . . . . . . . . . . . . . . . . . . . . . . . . . . . . . . . . . Siege Activations 43 | . . . . . . . . . 1 1 1 . 4 . 1 . . . . . . . . 1 . . 1 . 4 . . . . 4 5 . 12 8 Total Turns 1394 | . . . . . . . . . 10 8 24 . 219 . 15 . . . . . . . . 16 . . 13 . 100 . . . . 283 250 . 316 140 Longest Duration 159 | . . . . . . . . . 10 8 24 . 109 . 15 . . . . . . . . 16 . . 13 . 46 . . . . 146 159 . 50 49 Robots Corrupted 119 | . . . . . 2 . . 10 3 3 4 1 . . 5 . . 2 1 1 1 2 7 2 1 2 8 . 14 . . . . 7 3 2 20 18 Combat Hostiles 99 | . . . . . 2 . . 8 3 3 4 1 . . 3 . . 2 1 . 1 2 6 2 1 1 7 . 8 . . . . 5 3 2 17 17 Parts Fried 289 | . . . . . 3 6 . 18 3 4 7 2 1 . 26 . . 10 5 6 1 4 9 4 3 6 14 . 43 . . . . 21 10 2 50 31 Impact Corruptions . | . . . . . . . . . . . . . . . . . . . . . . . . . . . . . . . . . . . . . . . Robots Melted 1 | . . . . . 1 . . . . . . . . . . . . . . . . . . . . . . . . . . . . . . . . . Combat Hostiles 1 | . . . . . 1 . . . . . . . . . . . . . . . . . . . . . . . . . . . . . . . . . Parts Melted 19 | 1 2 . . . 12 1 . . . . . . 1 . . . . . . . . . . . . . . . 1 . . . . 1 . . . . Heat Transferred 12392 | 185 496 . . 87 3972 888 2072 335 200 124 100 259 772 . 250 . . . . 100 . 222 50 . . . 350 . 866 . . . . 100 50 . 864 50 Parts Sabotaged . | . . . . . . . . . . . . . . . . . . . . . . . . . . . . . . . . . . . . . . . Parts Stolen . | . . . . . . . . . . . . . . . . . . . . . . . . . . . . . . . . . . . . . . . Parts Stripped . | . . . . . . . . . . . . . . . . . . . . . . . . . . . . . . . . . . . . . . . Power Chain Reactions 25 | . 2 . . 1 2 . . 2 1 1 2 . 3 . 2 . . . . . . . 1 . . . 2 . 2 . . . . 1 1 . 1 1 Missiles Intercepted . | . . . . . . . . . . . . . . . . . . . . . . . . . . . . . . . . . . . . . . . Alert | -11 -10 -10 -10 -9 -8 -7 -7 -7 -7 -7 -7 -6 -6 -6 -6 -6 -6 -6 -5 -5 -5 -5 -5 -5 -5 -5 -4 -4 -4 -4 -4 -4 -3 -3 -3 -2 -2 -2 ------- Run | Scr Mat Min Exi Min Mat Fac Was Fac Low Low Dat Pro Fac Was Fac Low Low Zio Pro Fac Was Fac Ext Cet Arc Hub Fac Was Fac Upp Upp Zhi Pro Res Tes Res Qua Sec Peak Influence 3767 | 15 268 172 . 180 960 472 146 515 . . . . 1038 364 567 . . . . 361 50 194 216 525 239 1176 809 88 1307 . . . . 981 870 563 1178 3767 Average Influence 304 | 4 136 139 . 107 641 319 7 274 . . . . 237 321 301 . . . . 137 23 55 58 325 185 536 280 8 397 . . . . 327 647 516 507 1500 Maximum Alert Level 5 | . 1 . . . 3 2 . 2 . . . . 3 1 2 . . . . 1 . . 1 2 1 4 3 . 4 . . . . 3 3 2 4 5 Low Security (%) 50 | 100 71 100 . 100 13 . 100 40 . . . . 48 20 12 . . . . 64 100 100 96 42 44 9 63 100 49 . . . . 41 . . 10 . Level 1 21 | . 28 . . . 6 84 . 6 . . . . 40 79 74 . . . . 35 . . 3 13 55 36 2 . 18 . . . . 19 . . 39 . Level 2 13 | . . . . . 26 15 . 52 . . . . . . 12 . . . . . . . . 44 . 18 26 . 10 . . . . 36 64 100 17 1 Level 3 10 | . . . . . 52 . . . . . . . 11 . . . . . . . . . . . . 27 7 . 6 . . . . 2 35 . 30 31 Level 4 2 | . . . . . . . . . . . . . . . . . . . . . . . . . . 8 . . 14 . . . . . . . 2 45 Level 5 . | . . . . . . . . . . . . . . . . . . . . . . . . . . . . . . . . . . . . . . . High Security . | . . . . . . . . . . . . . . . . . . . . . . . . . . . . . . . . . . . . . . 20 Max Security . | . . . . . . . . . . . . . . . . . . . . . . . . . . . . . . . . . . . . . . . Squads Dispatched 192 | . 2 . . . 12 8 . 6 . . . . 32 . 13 . . . . 2 . 2 . . . 2 7 . 17 . . . . 12 10 3 29 35 Investigation 8 | . 1 . . . 1 1 . 2 . . . . 1 . . . . . . . . . . . . . . . . . . . . . . . 1 1 Extermination 49 | . . . . . . 5 . 3 . . . . 8 . 4 . . . . 1 . 1 . . . . 2 . 3 . . . . 6 5 . 8 3 Reinforcement 30 | . 1 . . . 5 2 . 1 . . . . 1 . 4 . . . . . . 1 . . . 1 1 . 2 . . . . . 2 . 4 5 Assault 32 | . . . . . 2 . . . . . . . 1 . . . . . . . . . . . . 1 1 . 2 . . . . . . 2 4 19 Garrison 18 | . . . . . 4 . . . . . . . 12 . . . . . . 1 . . . . . . . . . . . . . . . 1 . . Intercept 55 | . . . . . . . . . . . . . 9 . 5 . . . . . . . . . . . 3 . 10 . . . . 6 3 . 12 7 Construction Impeded 12 | . . . . . 3 . . . . . . . 1 . 2 . . . . . . 1 . . . . 1 . 2 . . . . . . . 2 . Haulers Reinforced 2 | . . . . . . 2 . . . . . . . . . . . . . . . . . . . . . . . . . . . . . . . . Stealth | -11 -10 -10 -10 -9 -8 -7 -7 -7 -7 -7 -7 -6 -6 -6 -6 -6 -6 -6 -5 -5 -5 -5 -5 -5 -5 -5 -4 -4 -4 -4 -4 -4 -3 -3 -3 -2 -2 -2 --------- Run | Scr Mat Min Exi Min Mat Fac Was Fac Low Low Dat Pro Fac Was Fac Low Low Zio Pro Fac Was Fac Ext Cet Arc Hub Fac Was Fac Upp Upp Zhi Pro Res Tes Res Qua Sec Distress Signals 30 | . 4 . . . 4 4 . 2 . . . . . . 1 . . . . . . . 1 2 . 2 1 . 2 . . . . 2 1 . 3 1 Communications Jammed . | . . . . . . . . . . . . . . . . . . . . . . . . . . . . . . . . . . . . . . . Distress Signals . | . . . . . . . . . . . . . . . . . . . . . . . . . . . . . . . . . . . . . . . Times Spotted 878 | . 21 3 . 24 87 27 5 35 13 10 4 2 49 . 38 . . 54 13 8 1 4 28 13 3 29 20 6 69 . . . . 38 30 2 89 153 Peak Tracking Total 21 | . 4 3 . 5 8 5 2 10 9 5 4 2 7 . 4 . . 5 5 2 1 1 4 5 2 8 4 2 10 . . . . 8 7 2 8 21 Tactical Retreats 76 | . . . . . 23 4 . 2 . 1 . . 8 . . . . 16 . 1 . . 4 . . 2 1 . . . . . . 2 1 1 5 5 Traps | -11 -10 -10 -10 -9 -8 -7 -7 -7 -7 -7 -7 -6 -6 -6 -6 -6 -6 -6 -5 -5 -5 -5 -5 -5 -5 -5 -4 -4 -4 -4 -4 -4 -3 -3 -3 -2 -2 -2 ------- Run | Scr Mat Min Exi Min Mat Fac Was Fac Low Low Dat Pro Fac Was Fac Low Low Zio Pro Fac Was Fac Ext Cet Arc Hub Fac Was Fac Upp Upp Zhi Pro Res Tes Res Qua Sec Traps Triggered 23 | . 1 . . . 1 3 . 4 . . . . 4 . . . . . . 1 . . 1 . . 1 1 . 2 . . . . 1 . . 1 2 Indirectly 3 | . . . . . 1 . . 1 . . . . . . . . . . . . . . . . . 1 . . . . . . . . . . . . Trap Hack Attempts . | . . . . . . . . . . . . . . . . . . . . . . . . . . . . . . . . . . . . . . . Triggered . | . . . . . . . . . . . . . . . . . . . . . . . . . . . . . . . . . . . . . . . Disarmed . | . . . . . . . . . . . . . . . . . . . . . . . . . . . . . . . . . . . . . . . Reprogrammed . | . . . . . . . . . . . . . . . . . . . . . . . . . . . . . . . . . . . . . . . Reused . | . . . . . . . . . . . . . . . . . . . . . . . . . . . . . . . . . . . . . . . Traps Extracted . | . . . . . . . . . . . . . . . . . . . . . . . . . . . . . . . . . . . . . . . Installed . | . . . . . . . . . . . . . . . . . . . . . . . . . . . . . . . . . . . . . . . Triggered 8 | . . . . . . . . . 2 1 . . . . . . . . 3 . . . . . . . . . . 1 1 . . . . . . . Machines | -11 -10 -10 -10 -9 -8 -7 -7 -7 -7 -7 -7 -6 -6 -6 -6 -6 -6 -6 -5 -5 -5 -5 -5 -5 -5 -5 -4 -4 -4 -4 -4 -4 -3 -3 -3 -2 -2 -2 ---------- Run | Scr Mat Min Exi Min Mat Fac Was Fac Low Low Dat Pro Fac Was Fac Low Low Zio Pro Fac Was Fac Ext Cet Arc Hub Fac Was Fac Upp Upp Zhi Pro Res Tes Res Qua Sec Machines Disabled 102 | . 1 . . 1 4 . . 7 . 1 . . 5 . 1 . . 2 . 7 . 2 4 2 2 17 1 . 13 . . . . 2 9 . 10 11 Max in Single Turn 8 | . 1 . . 1 1 . . 2 . 1 . . 1 . 1 . . 1 . 2 . 1 1 1 1 8 1 . 3 . . . . 1 1 . 1 1 Garrison Access 10 | . . . . . . 1 . 2 . . . . 1 . 1 . . . . . . . . . . . . . 2 . . . . . . 1 1 1 Network Hub 2 | . . . . . . . . . . . . . . . . . . . . . . . . . . 2 . . . . . . . . . . . . Machines Sabotaged . | . . . . . . . . . . . . . . . . . . . . . . . . . . . . . . . . . . . . . . . Garrisons Compromised . | . . . . . . . . . . . . . . . . . . . . . . . . . . . . . . . . . . . . . . . Overloaded Fab Kills . | . . . . . . . . . . . . . . . . . . . . . . . . . . . . . . . . . . . . . . . Fab Network Shutdowns 2 | . . . . . . . . . . . . . 1 . . . . . . . . . . . . . . . . . . . . 1 . . . . Hacking | -11 -10 -10 -10 -9 -8 -7 -7 -7 -7 -7 -7 -6 -6 -6 -6 -6 -6 -6 -5 -5 -5 -5 -5 -5 -5 -5 -4 -4 -4 -4 -4 -4 -3 -3 -3 -2 -2 -2 --------- Run | Scr Mat Min Exi Min Mat Fac Was Fac Low Low Dat Pro Fac Was Fac Low Low Zio Pro Fac Was Fac Ext Cet Arc Hub Fac Was Fac Upp Upp Zhi Pro Res Tes Res Qua Sec Machines Accessed 172 | . 7 . 1 . 11 15 . 12 1 . 4 . 11 . 13 . . 1 . 4 . 11 11 2 . 5 3 . 10 1 3 7 . 6 5 3 13 12 Terminals 107 | . 7 . . . 6 10 . 5 . . . . 5 . 9 . . . . 4 . 9 10 2 . 5 2 . 6 . . . . 5 3 2 9 8 Fabricators 7 | . . . . . . 3 . 1 . . . . 1 . 1 . . . . . . . . . . . . . . . . . . 1 . . . . Repair Stations 16 | . . . . . 1 . . 3 . . . . . . 2 . . . . . . 1 . . . . 1 . 2 . . . . . 2 . 2 2 Recycling Units 9 | . . . . . 2 1 . . . . . . 4 . . . . . . . . 1 1 . . . . . . . . . . . . . . . Scanalyzers 5 | . . . . . 2 . . 1 . . . . . . . . . . . . . . . . . . . . . . . . . . . . 1 1 Garrison Access 10 | . . . . . . 1 . 2 . . . . 1 . 1 . . . . . . . . . . . . . 2 . . . . . . 1 1 1 Total Hacks 526 | . 18 . 1 . 24 30 . 31 1 . 25 . 23 . 22 . . 7 . 10 . 39 22 7 . 12 19 . 37 1 9 42 . 26 23 11 51 35 Successful 344 | . 11 . 1 . 14 19 . 19 1 . 25 . 12 . 16 . . 7 . 8 . 30 14 3 . 7 15 . 25 1 9 42 . 19 11 4 23 8 Failed 182 | . 7 . . . 10 11 . 12 . . . . 11 . 6 . . . . 2 . 9 8 4 . 5 4 . 12 . . . . 7 12 7 28 27 Catastrophic 38 | . . . . . 1 1 . 1 . . . . 1 . 2 . . . . . . . 2 2 . . 2 . 3 . . . . 3 3 2 6 9 Database Lockouts . | . . . . . . . . . . . . . . . . . . . . . . . . . . . . . . . . . . . . . . . Manual 240 | . 19 . . . 13 15 . 7 . 1 . . 6 . 14 . . 1 . 7 . 20 18 5 . 12 6 . 14 . . . . 19 18 4 31 10 Terminals 298 | . 18 . . . 13 20 . 11 . . . . 13 . 15 . . . . 10 . 23 20 7 . 12 13 . 22 . . . . 17 19 6 32 27 Fabricators 26 | . . . . . . 8 . 4 . . . . 3 . 2 . . . . . . . . . . . . . . . . . . 9 . . . . Repair Stations 68 | . . . . . 3 . . 9 . . . . . . 4 . . . . . . 14 . . . . 6 . 12 . . . . . 4 . 13 3 Recycling Units 15 | . . . . . 4 1 . . . . . . 6 . . . . . . . . 2 2 . . . . . . . . . . . . . . . Scanalyzers 12 | . . . . . 4 . . 3 . . . . . . . . . . . . . . . . . . . . . . . . . . . . 2 3 Garrison Access 21 | . . . . . . 1 . 4 . . . . 1 . 1 . . . . . . . . . . . . . 3 . . . . . . 5 4 2 Terminal Hacks 155 | . 4 . 1 . 3 6 . 1 1 . 25 . 2 . . . . 7 . 3 . 6 7 2 . 3 7 . 5 1 9 42 . 2 4 2 8 4 Record 55 | . . . 1 . . . . . . . 11 . . . . . . . . . . . . . . . . . . . 7 34 . . . . 2 . Part Schematic 21 | . . . . . 2 2 . . . . 4 . . . . . . 7 . . . 1 . . . . . . . . . 4 . 1 . . . . Robot Schematic 7 | . . . . . . . . . . . 7 . . . . . . . . . . . . . . . . . . . . . . . . . . . Prototype ID Bank 7 | . . . . . . . . . . . 3 . . . . . . . . . . . . . . . . . . . . 4 . . . . . . Open Door 7 | . . . . . . . . . 1 . . . . . . . . . . . . . 1 . . . . . . 1 2 . . . 1 1 . . Level Access Points 1 | . . . . . . . . . . . . . . . . . . . . . . . . . . . . . . . . . . . 1 . . . Branch Access Points 3 | . . . . . . . . 1 . . . . . . . . . . . . . . . . . . . . 1 . . . . 1 . . . . Terminal Index 1 | . . . . . . 1 . . . . . . . . . . . . . . . . . . . . . . . . . . . . . . . . Fabricator Index 1 | . . . . . . 1 . . . . . . . . . . . . . . . . . . . . . . . . . . . . . . . . Alert Level 5 | . . . . . . . . . . . . . . . . . . . . . . . . . . . 2 . 1 . . . . . 1 . . 1 Unreport Threat 22 | . . . . . . . . . . . . . . . . . . . . 1 . 2 3 2 . 2 4 . . . . . . . 1 1 4 2 Locate Traps 6 | . . . . . . 1 . . . . . . 2 . . . . . . . . . . . . . . . 2 . . . . . . . . 1 Extermination Status 1 | . . . . . . . . . . . . . . . . . . . . . . . 1 . . . . . . . . . . . . . . . Recall Assault 1 | . . . . . . . . . . . . . . . . . . . . . . . . . . . . . . . . . . . . . 1 . Hauler Manifests 2 | . . . . . . . . . . . . . . . . . . . . 1 . 1 . . . . . . . . . . . . . . . . Zone Layout 15 | . 4 . . . 1 1 . . . . . . . . . . . . . 1 . 2 2 . . 1 1 . 1 . . . . . . . 1 . Fabricator Hacks 20 | . . . . . . 5 . 4 . . . . 2 . 2 . . . . . . . . . . . . . . . . . . 7 . . . . Load Schematic 9 | . . . . . . 3 . 2 . . . . 1 . 1 . . . . . . . . . . . . . . . . . . 2 . . . . Build 11 | . . . . . . 2 . 2 . . . . 1 . 1 . . . . . . . . . . . . . . . . . . 5 . . . . Repair Station Hacks 51 | . . . . . 2 . . 8 . . . . . . 3 . . . . . . 14 . . . . 6 . 11 . . . . . 2 . 5 . Scan Component 29 | . . . . . 1 . . 4 . . . . . . 2 . . . . . . 7 . . . . 3 . 7 . . . . . 1 . 4 . Repair 22 | . . . . . 1 . . 4 . . . . . . 1 . . . . . . 7 . . . . 3 . 4 . . . . . 1 . 1 . Recycling Unit Hacks 6 | . . . . . 1 . . . . . . . 4 . . . . . . . . 1 . . . . . . . . . . . . . . . . Retrieve Components 6 | . . . . . 1 . . . . . . . 4 . . . . . . . . 1 . . . . . . . . . . . . . . . . Scanalyzer 9 | . . . . . 4 . . 2 . . . . . . . . . . . . . . . . . . . . . . . . . . . . 2 1 Insert Component 6 | . . . . . 2 . . 1 . . . . . . . . . . . . . . . . . . . . . . . . . . . . 2 1 Analyze 3 | . . . . . 2 . . 1 . . . . . . . . . . . . . . . . . . . . . . . . . . . . . . Garrison Access Hacks 8 | . . . . . . 1 . 2 . . . . 1 . 1 . . . . . . . . . . . . . 2 . . . . . . 1 . . Seal Access 8 | . . . . . . 1 . 2 . . . . 1 . 1 . . . . . . . . . . . . . 2 . . . . . . 1 . . Unauthorized Hacks 95 | . 7 . . . 4 7 . 2 . . . . 3 . 10 . . . . 5 . 9 7 1 . 4 2 . 7 . . . . 10 5 1 8 3 Terminals 92 | . 7 . . . 4 7 . 2 . . . . 3 . 10 . . . . 5 . 9 7 1 . 4 2 . 7 . . . . 8 5 1 8 2 Track 28 | . 5 . . . 1 1 . . . . . . . . 2 . . . . 1 . 3 2 1 . 3 . . 3 . . . . 1 1 . 3 1 Assimilate 14 | . . . . . . 2 . 1 . . . . . . 3 . . . . . . 2 . . . . 1 . . . . . . 3 . . 2 . Botnet 43 | . 2 . . . 3 3 . 1 . . . . 3 . 4 . . . . 3 . 4 4 . . 1 1 . 3 . . . . 3 3 1 3 1 Disrupt 1 | . . . . . . . . . . . . . . . . . . . . . . . 1 . . . . . . . . . . . . . . . Operators 6 | . . . . . . 1 . . . . . . . . 1 . . . . 1 . . . . . . . . 1 . . . . 1 1 . . . Fabricators 2 | . . . . . . . . . . . . . . . . . . . . . . . . . . . . . . . . . . 2 . . . . Prioritize 1 | . . . . . . . . . . . . . . . . . . . . . . . . . . . . . . . . . . 1 . . . . Siphon 1 | . . . . . . . . . . . . . . . . . . . . . . . . . . . . . . . . . . 1 . . . . Repair Stations . | . . . . . . . . . . . . . . . . . . . . . . . . . . . . . . . . . . . . . . . Recycling Units . | . . . . . . . . . . . . . . . . . . . . . . . . . . . . . . . . . . . . . . . Scanalyzers . | . . . . . . . . . . . . . . . . . . . . . . . . . . . . . . . . . . . . . . . Garrison Access 1 | . . . . . . . . . . . . . . . . . . . . . . . . . . . . . . . . . . . . . . 1 Jam 1 | . . . . . . . . . . . . . . . . . . . . . . . . . . . . . . . . . . . . . . 1 Data Cores Recovered . | . . . . . . . . . . . . . . . . . . . . . . . . . . . . . . . . . . . . . . . Used . | . . . . . . . . . . . . . . . . . . . . . . . . . . . . . . . . . . . . . . . Hacking Detections 119 | . 6 . . . 8 12 . 11 . . . . 7 . 10 . . . . 4 . 9 8 3 . 4 . . 5 . . . . 4 4 2 10 12 Full Trace Events 2 | . . . . . . 1 . . . . . . 1 . . . . . . . . . . . . . . . . . . . . . . . . . Feedback Events 1 | . . . . . . 1 . . . . . . . . . . . . . . . . . . . . . . . . . . . . . . . . Corruption 1 | . . . . . . 1 . . . . . . . . . . . . . . . . . . . . . . . . . . . . . . . . Feedback Blocked . | . . . . . . . . . . . . . . . . . . . . . . . . . . . . . . . . . . . . . . . Robot Schematics Acquired 7 | . . . . . . . . . . . 7 . . . . . . . . . . . . . . . . . . . . . . . . . . . Robots Built . | . . . . . . . . . . . . . . . . . . . . . . . . . . . . . . . . . . . . . . . Matter . | . . . . . . . . . . . . . . . . . . . . . . . . . . . . . . . . . . . . . . . Time . | . . . . . . . . . . . . . . . . . . . . . . . . . . . . . . . . . . . . . . . Total Robot Build Rating . | . . . . . . . . . . . . . . . . . . . . . . . . . . . . . . . . . . . . . . . Part Schematics Acquired 24 | . . . . . 4 2 . 1 . . 4 . . . . . . 7 . . . 1 . . . . . . . . . 4 . 1 . . . . Parts Built 12 | . . . . . . 3 . 2 . . . . 1 . 1 . . . . . . . . . . . . . . . . . . 5 . . . . Matter 1913 | . . . . . . 270 . 380 . . . . 124 . 190 . . . . . . . . . . . . . . . . . . 949 . . . . Time 819 | . . . . . . 67 . 190 . . . . 31 . 95 . . . . . . . . . . . . . . . . . . 436 . . . . Total Part Build Rating 50 | . . . . . . 8 . 10 . . . . 2 . 5 . . . . . . . . . . . . . . . . . . 25 . . . . Parts Repaired 22 | . . . . . 1 . . 4 . . . . . . 1 . . . . . . 7 . . . . 3 . 4 . . . . . 1 . 1 . Time 991 | . . . . . 13 . . 124 . . . . . . 25 . . . . . . 284 . . . . 185 . 312 . . . . . 20 . 28 . Parts Recycled . | . . . . . . . . . . . . . . . . . . . . . . . . . . . . . . . . . . . . . . . Recycled Matter . | . . . . . . . . . . . . . . . . . . . . . . . . . . . . . . . . . . . . . . . Retrieved Matter . | . . . . . . . . . . . . . . . . . . . . . . . . . . . . . . . . . . . . . . . Retrieved Components 25 | . . . . . 10 . . . . . . . 12 . . . . . . . . 3 . . . . . . . . . . . . . . . . Parts Scanalyzed 3 | . . . . . 2 . . 1 . . . . . . . . . . . . . . . . . . . . . . . . . . . . . . Part Schematics Acquired 3 | . . . . . 2 . . 1 . . . . . . . . . . . . . . . . . . . . . . . . . . . . . . Parts Damaged . | . . . . . . . . . . . . . . . . . . . . . . . . . . . . . . . . . . . . . . . Bothacking | -11 -10 -10 -10 -9 -8 -7 -7 -7 -7 -7 -7 -6 -6 -6 -6 -6 -6 -6 -5 -5 -5 -5 -5 -5 -5 -5 -4 -4 -4 -4 -4 -4 -3 -3 -3 -2 -2 -2 ------------ Run | Scr Mat Min Exi Min Mat Fac Was Fac Low Low Dat Pro Fac Was Fac Low Low Zio Pro Fac Was Fac Ext Cet Arc Hub Fac Was Fac Upp Upp Zhi Pro Res Tes Res Qua Sec Used RIF Installer . | . . . . . . . . . . . . . . . . . . . . . . . . . . . . . . . . . . . . . . . Robots Hacked 17 | . . . . . . 1 . . . 1 1 . 3 . 2 1 . 1 . 1 . . . 2 . . 1 . . . . 3 . . . . . . Non-combat 6 | . . . . . . 1 . . . 1 . . 1 . . 1 . . . 1 . . . . . . 1 . . . . . . . . . . . Combat 11 | . . . . . . . . . . . 1 . 2 . 2 . . 1 . . . . . 2 . . . . . . . 3 . . . . . . Robot Hacks Applied 26 | . . . . . . 1 . . . 1 1 . 4 . 9 1 . 1 . 1 . . . 2 . . 1 . . . . 4 . . . . . . parse_system 22 | . . . . . . . . . . 1 1 . 3 . 9 1 . 1 . . . . . 2 . . . . . . . 4 . . . . . . find_chute 4 | . . . . . . 1 . . . . . . 1 . . . . . . 1 . . . . . . 1 . . . . . . . . . . . Relay Couplers Released 6 | . . . . . . . . . . . . . . . . . . . . . . . . . . . . . 4 . . . . . . . 2 . Machine Destruction 2 | . . . . . . . . . . . . . . . . . . . . . . . . . . . . . . . . . . . . . 2 . Programmers 4 | . . . . . . . . . . . . . . . . . . . . . . . . . . . . . 4 . . . . . . . . . Robots Rewired 10 | . . . . . . . . . 1 . . . . . . . . . . . . . 9 . . . . . . . . . . . . . . . Allies Hacked . | . . . . . . . . . . . . . . . . . . . . . . . . . . . . . . . . . . . . . . . Hacks Repelled . | . . . . . . . . . . . . . . . . . . . . . . . . . . . . . . . . . . . . . . . Allies | -11 -10 -10 -10 -9 -8 -7 -7 -7 -7 -7 -7 -6 -6 -6 -6 -6 -6 -6 -5 -5 -5 -5 -5 -5 -5 -5 -4 -4 -4 -4 -4 -4 -3 -3 -3 -2 -2 -2 -------- Run | Scr Mat Min Exi Min Mat Fac Was Fac Low Low Dat Pro Fac Was Fac Low Low Zio Pro Fac Was Fac Ext Cet Arc Hub Fac Was Fac Upp Upp Zhi Pro Res Tes Res Qua Sec Total Allies 36 | . . . . . . 1 . 4 1 . . . . . 3 . . 7 . . . 2 10 5 . . . . . . . . . 2 . . 1 . Largest Group 13 | . . . . . . 1 1 3 1 1 . . . . 2 . . 7 . . . 2 8 13 8 7 . . . . . . . 1 . . 1 . Highest-Rated Group 824 | . . . . . . 10 10 93 30 30 . . . . 34 . . 191 . . . 36 359 824 654 506 . . . . . . . 44 . . 26 . Highest-Rated Ally 156 | . . . . . . 10 10 31 30 30 . . . . 26 . . 31 . . . 26 156 156 148 94 . . . . . . . 44 . . 26 . Total Orders 148 | . . . . . . 14 1 3 4 3 . . . . 21 . . . . . . 26 26 23 3 20 . . . . . . . 3 . . 1 . STAY 14 | . . . . . . . . . 2 . . . . . . . . . . . . 2 2 6 . 2 . . . . . . . . . . . . GOTO 88 | . . . . . . 7 1 2 . 2 . . . . 14 . . . . . . 16 16 13 2 11 . . . . . . . 3 . . 1 . ROAM 1 | . . . . . . . . . . . . . . . . . . . . . . . 1 . . . . . . . . . . . . . . . FOLLOW 45 | . . . . . . 7 . 1 2 1 . . . . 7 . . . . . . 8 7 4 1 7 . . . . . . . . . . . . Ally Attacks 200 | . . . . . . . . 42 . . . . . . . . . . . . . . 43 55 16 44 . . . . . . . . . . . . Total Damage 5370 | . . . . . . . . 611 . . . . . . . . . . . . . . 877 1602 621 1659 . . . . . . . . . . . . Kills 36 | . . . . . . . . 4 . . . . . . . . . . . . . . 10 10 2 10 . . . . . . . . . . . . Allies Corrupted 1 | . . . . . . . . . . . . . . . . . . . . . . . . . . . . . . . . . . 1 . . . . Allies Melted . | . . . . . . . . . . . . . . . . . . . . . . . . . . . . . . . . . . . . . . . Intel | -11 -10 -10 -10 -9 -8 -7 -7 -7 -7 -7 -7 -6 -6 -6 -6 -6 -6 -6 -5 -5 -5 -5 -5 -5 -5 -5 -4 -4 -4 -4 -4 -4 -3 -3 -3 -2 -2 -2 ------- Run | Scr Mat Min Exi Min Mat Fac Was Fac Low Low Dat Pro Fac Was Fac Low Low Zio Pro Fac Was Fac Ext Cet Arc Hub Fac Was Fac Upp Upp Zhi Pro Res Tes Res Qua Sec Robot Analysis Total 115 | . . . . . . . . . . . 115 . . . . . . . . . . . . . . . . . . . . . . . . . . . Derelict Logs Recovered 17 | . . 2 . 1 . . . . 2 1 . 2 . . . 1 2 2 1 . . . . . . . . . . 2 1 . . . . . . . Drone Launches 3 | . . . . . . . . . . . . . . . . . . . . . . . 3 . . . . . . . . . . . . . . . Drone Recoveries . | . . . . . . . . . . . . . . . . . . . . . . . . . . . . . . . . . . . . . . . Exploration | -11 -10 -10 -10 -9 -8 -7 -7 -7 -7 -7 -7 -6 -6 -6 -6 -6 -6 -6 -5 -5 -5 -5 -5 -5 -5 -5 -4 -4 -4 -4 -4 -4 -3 -3 -3 -2 -2 -2 ------------- Run | Scr Mat Min Exi Min Mat Fac Was Fac Low Low Dat Pro Fac Was Fac Low Low Zio Pro Fac Was Fac Ext Cet Arc Hub Fac Was Fac Upp Upp Zhi Pro Res Tes Res Qua Sec Turns Passed 67617 | 86 788 339 419 453 3586 3340 7634 2699 792 1887 754 844 5618 505 2368 525 660 6010 1475 965 855 1243 2220 601 142 648 1137 4196 2598 737 561 352 551 2166 1944 313 3606 2000 Spaces Moved 26772 | 62 603 303 361 271 1476 2031 601 1230 466 565 445 467 1642 388 877 384 456 4179 552 265 666 453 1227 346 75 211 377 563 958 540 418 262 344 680 509 126 796 597 Core 361 | 1 . . . . . . 271 . . . . . . . . . . . . . . . . . . . . 82 . . . . . . . . 7 . Treads 3522 | . . . . 17 1117 . . 3 1 23 81 . 154 . 17 . . . . . . . . . . 19 218 . 73 . . . . 96 286 126 694 597 Legs . | . . . . . . . . . . . . . . . . . . . . . . . . . . . . . . . . . . . . . . . Wheels 22889 | 61 603 303 361 254 359 2031 330 1227 465 542 364 467 1488 388 860 384 456 4179 552 265 666 453 1227 346 75 192 159 481 885 540 418 262 344 584 223 . 95 . Hover . | . . . . . . . . . . . . . . . . . . . . . . . . . . . . . . . . . . . . . . . Flight . | . . . . . . . . . . . . . . . . . . . . . . . . . . . . . . . . . . . . . . . Fastest Speed 50 | 50 90 100 80 120 120 116 120 110 123 130 110 150 113 113 113 113 123 113 116 116 110 110 130 133 133 133 113 133 123 120 120 120 120 130 140 200 150 167 Average Speed 172 | 89 101 100 108 128 196 118 1240 123 130 132 149 153 130 113 121 115 123 121 125 124 114 115 131 133 133 138 158 725 144 122 120 120 129 148 183 204 210 168 Slowest Speed 4200 | 100 110 100 120 240 240 120 2600 200 200 200 200 160 200 130 220 123 123 126 126 136 136 130 133 180 133 220 200 4200 220 125 120 140 140 225 270 225 340 180 Overloaded Moves . | . . . . . . . . . . . . . . . . . . . . . . . . . . . . . . . . . . . . . . . Propulsion Burnouts . | . . . . . . . . . . . . . . . . . . . . . . . . . . . . . . . . . . . . . . . Robots Hopped . | . . . . . . . . . . . . . . . . . . . . . . . . . . . . . . . . . . . . . . . Cave-ins Triggered 2 | . . . . . . . . . . . . . 1 . . . . . . . . . . . . . . . . . . . . . . . 1 . Teleports 1 | . . . . . . . . . . . . . . . . . . . . . . . . . . . . . . . . . . . . . 1 . Exploration Rate (%) 52 | 4 95 35 68 66 95 41 83 34 59 41 78 56 29 93 28 57 48 87 55 10 93 12 77 67 76 40 10 100 24 62 54 62 51 8 49 4 77 35 Regions Visited 38 Branch Regions 22 Pre-discovered Areas 39 | . . 1 1 . . . . . . 1 28 1 . . . . . 2 . . . . . . . . . . . 1 1 3 . . . . . . Known Exits Taken 25 | . . . 1 . . . . 1 1 1 1 1 . . 1 1 1 1 1 . . 1 1 1 1 1 . . 1 1 1 1 1 1 1 1 1 . Unknown Exits Taken 5 | 1 1 1 . 1 1 . . . . . . . . . . . . . . . . . . . . . . . . . . . . . . . . . Scrap Searched 28 | . . 1 . 1 . . . . 8 2 . 2 . . . 2 1 5 1 . . . . . . . . . . 2 2 . 1 . . . . . Spaces Dug 631 | . . . . 14 15 63 2 37 6 12 . 14 73 2 46 7 17 5 24 21 . 26 8 23 . 6 22 3 35 19 22 . 19 4 25 7 33 21 Terrain Destroyed 2382 | . 64 17 . 136 181 71 34 82 30 65 5 14 97 2 88 7 17 166 256 37 . 49 12 23 . 285 42 6 82 19 22 . 37 40 42 8 192 154 Melee 471 | . . . . . . 63 2 37 6 12 . 14 73 2 45 7 17 4 18 21 . 10 3 . . 6 11 . 13 19 22 . 13 2 22 2 22 5 Projectile 239 | . . 1 . . 7 2 2 1 . . . . 3 . 1 . . 3 25 . . 39 9 . . . 18 6 31 . . . 24 9 6 6 23 23 AOE 1672 | . 64 16 . 136 174 6 30 44 24 53 5 . 21 . 42 . . 159 213 16 . . . 23 . 279 13 . 38 . . . . 29 14 . 147 126 Actions | -11 -10 -10 -10 -9 -8 -7 -7 -7 -7 -7 -7 -6 -6 -6 -6 -6 -6 -6 -5 -5 -5 -5 -5 -5 -5 -5 -4 -4 -4 -4 -4 -4 -3 -3 -3 -2 -2 -2 --------- Run | Scr Mat Min Exi Min Mat Fac Was Fac Low Low Dat Pro Fac Was Fac Low Low Zio Pro Fac Was Fac Ext Cet Arc Hub Fac Was Fac Upp Upp Zhi Pro Res Tes Res Qua Sec Total 44221 | 78 707 320 389 333 1902 2661 696 2204 600 1645 531 545 4660 448 1979 447 526 4825 1217 833 751 1092 1741 452 103 466 832 675 1972 576 445 294 405 1649 1291 173 2344 1414 Wait 10154 | . 7 . . 6 123 336 20 726 42 1004 5 29 2388 14 551 34 51 240 534 443 14 478 340 38 9 118 213 40 393 7 4 . 11 528 361 8 776 263 Move 26736 | 61 602 302 360 270 1475 2031 600 1229 465 564 444 466 1641 387 876 383 455 4178 551 265 665 452 1226 345 74 210 377 562 957 539 417 261 343 679 508 125 794 597 Hop . | . . . . . . . . . . . . . . . . . . . . . . . . . . . . . . . . . . . . . . . Pick Up 619 | 5 20 2 21 2 44 14 4 23 5 2 25 3 43 8 38 1 . 36 1 9 10 26 7 6 . 12 24 7 34 . 1 8 1 25 23 4 95 30 Fast Attach 359 | 7 1 . 1 3 9 8 2 5 2 2 2 1 26 6 35 1 . 16 4 5 9 10 7 5 1 9 12 2 34 1 . 3 1 20 30 2 44 33 Attach 564 | . . . . 8 18 22 3 12 9 8 13 3 61 7 62 2 . 15 7 10 11 12 7 1 . 11 25 2 53 . . 2 3 35 37 4 54 47 Detach 513 | . 1 . . 2 4 18 5 5 4 6 12 3 51 3 62 2 . 14 7 9 9 14 8 2 2 10 18 5 58 . . 1 3 45 39 5 40 46 Swap 794 | . 17 4 3 13 47 40 12 56 14 20 6 6 63 . 34 5 1 27 15 20 1 10 24 13 2 7 27 . 63 1 . 3 3 34 47 3 88 65 Drop 775 | . 12 2 4 2 40 20 8 15 3 3 11 3 56 17 74 2 . 35 5 7 20 13 14 11 1 20 27 9 64 1 1 4 2 39 58 4 116 52 Fire 2645 | 5 47 10 . 27 126 39 38 60 24 22 11 11 169 4 178 6 . 158 63 38 12 63 81 26 14 58 85 48 271 4 . 8 25 208 158 15 264 269 Melee 982 | . . . . . 16 117 4 57 13 14 2 20 153 2 69 11 19 106 30 27 . 14 18 5 . 11 24 . 45 23 22 3 13 36 30 3 69 6 Ram . | . . . . . . . . . . . . . . . . . . . . . . . . . . . . . . . . . . . . . . . Kick . | . . . . . . . . . . . . . . . . . . . . . . . . . . . . . . . . . . . . . . . Crush 3 | . . . . . . . . . . . . . . . . . . . . . . . . . . . . . . . . . . . . . 3 . Escape Stasis 56 | . . . . . . 16 . 16 . . . . 9 . . . . . . . . . 8 . . . . . . . . . . . . . 1 6 Rewire 20 | . . . . . . . . . 19 . . . . . . . . . . . . . . . . . . . . . . 1 . . . . . . Trap . | . . . . . . . . . . . . . . . . . . . . . . . . . . . . . . . . . . . . . . . Miscellaneous 1 | . . . . . . . . . . . . . . . . . . . . . . . 1 . . . . . . . . . . . . . . . Route ------- -11/Scrapyard -10/Materials (discovered 5 exits: [*Mat x3] / [*Min x2]) -10/Mines (discovered 3 exits: [*Mat x2] / *Exi) -10/Exiles (discovered 2 exits: *Min x2) -9/Mines (discovered 2 exits: *Mat x2) -8/Materials (discovered 4 exits: *Fac x3 / [*Sto]) -7/Factory -7/Waste -7/Factory (discovered 4 exits: *Fac x2 / *Low x2) -7/Lower Caves (discovered 2 exits: *Low / *Zio) -7/Lower Caves (discovered 2 exits: *Fac / *Dat) -7/Data Miner -6/Proximity Caves -6/Factory (discovered 3 exits: *Fac x3) -6/Waste -6/Factory -6/Lower Caves -6/Lower Caves (discovered 2 exits: *Fac / *Zio) -6/Zion -5/Proximity Caves -5/Factory (discovered 5 exits: Fac x2 / Upp / Ext x2) -5/Waste -5/Factory (discovered 2 exits: *Ext x2) -5/Extension (discovered 2 exits: *Fac / *Cet) -5/Cetus (discovered 2 exits: *Fac / *Arc) -5/Archives (discovered 2 exits: *Hub x2) -5/Hub_04(d) (discovered 3 exits: *Fac x3) -4/Factory -4/Waste -4/Factory (discovered 3 exits: *Res / *Upp x2) -4/Upper Caves -4/Upper Caves (discovered 2 exits: Res / *Zhi) -4/Zhirov -3/Proximity Caves -3/Research (discovered 3 exits: Arm / *Tes x2) -3/Testing -2/Research -2/Quarantine (discovered 2 exits: *Acc / *Sec) -2/Section 7 (discovered 1 exit: *Acc) History --------- Turn | Location | Event 35 | -11/Scrapyard | Discovered new exit (range 15) 87 | -11/Scrapyard | Entered Materials 135 | -10/Materials | Discovered new exit (range 13) 152 | -10/Materials | Discovered new exit (range 4) 155 | -10/Materials | Discovered new exit (range 14) 314 | -10/Materials | Build established: Mutant 327 | -10/Materials | Discovered new exit (range 13) 736 | -10/Materials | Discovered new exit (range 8) 875 | -10/Materials | Entered Mines 879 | -10/Mines | Learned Materials trap positions 922 | -10/Mines | Met a Derelict bent on vengeance 1015 | -10/Mines | Discovered new exit (range 4) 1027 | -10/Mines | A weapon hastily lodged in a ceiling crevice suddenly fell to the ground 1075 | -10/Mines | Discovered new exit (range 12) 1123 | -10/Mines | Learned location of Storage (-8) 1209 | -10/Mines | Deemed a non-threat by the Exiles lab entrance 1210 | -10/Mines | Discovered new exit (range 5) 1214 | -10/Mines | Entered Exiles 1215 | -10/Exiles | Identified exit to Mines 1241 | -10/Exiles | Met 8R-AWN 1255 | -10/Exiles | Met EX-HEX 1343 | -10/Exiles | Met EX-DEC 1363 | -10/Exiles | Learned location of Zion (-6) 1385 | -10/Exiles | Met EX-BIN 1595 | -10/Exiles | Build established: Hauler-Mutant 1633 | -10/Exiles | Entered Mines 1635 | -9/Mines | Discovered new exit (range 7) 1819 | -9/Mines | Assembled infested the area 1824 | -9/Mines | Assisted by a Guerilla fighting off Assembled 1888 | -9/Mines | Destroyed 12 combat bots 1961 | -9/Mines | Lost 9 parts (2p3n4w) 2049 | -9/Mines | Found a hidden stash of uninstalled traps 2067 | -9/Mines | Discovered new exit (range 14) 2086 | -9/Mines | Entered Materials 2086 | -8/Materials | Evolved 4 slots: Utility x4 2087 | -8/Materials | Loaded intel: 13 trap records 2142 | -8/Materials | Repaired Grenade Launcher 2516 | -8/Materials | Discovered new exit (range 13) 2654 | -8/Materials | Lost 3 parts (1u2w) 2772 | -8/Materials | Garrison activated, responded to threat 2847 | -8/Materials | Destroyed 9 combat bots 2874 | -8/Materials | Garrison activated, responded to threat 2886 | -8/Materials | First assault squad dispatched 2921 | -8/Materials | Discovered new exit (range 13) 2953 | -8/Materials | Destroyed 8 combat bots 2955 | -8/Materials | Lost 3 parts (2n1w) 3588 | -8/Materials | Build established: Scavenger-Mutant 4023 | -8/Materials | Build established: Hauler-Mutant 4863 | -8/Materials | Discovered new exit (range 16) 5200 | -8/Materials | Discovered new exit (range 12) 5672 | -8/Materials | Entered Factory 5672 | -7/Factory | Evolved 2 slots: Propulsion x1, Utility x1 7316 | -7/Factory | Fabricated Armor Integrity Analyzer (x1) 8677 | -7/Factory | Fabricated Adv. Signal Interpreter (x2) 9012 | -7/Factory | Sucked down chute 9012 | -7/Factory | Entered Waste 9015 | -7/Waste | 1 allies followed down the chute 9027 | -7/Waste | EMP discharged 9038 | -7/Waste | Spotted C-40 Crusher 9038 | -7/Waste | Spotted C-40 Crusher 9078 | -7/Waste | Destroyed C-40 Crusher 9127 | -7/Waste | EMP discharged 9127 | -7/Waste | System corruption reached 10% 9140 | -7/Waste | Spotted C-40 Crusher 9189 | -7/Waste | Destroyed C-40 Crusher 9225 | -7/Waste | Destroyed C-40 Crusher 9227 | -7/Waste | EMP discharged 9238 | -7/Waste | Spotted C-40 Crusher 9262 | -7/Waste | Destroyed C-40 Crusher 9278 | -7/Waste | Found Unknown Protection 9306 | -7/Waste | Destroyed C-40 Crusher 9309 | -7/Waste | Spotted C-40 Crusher 9313 | -7/Waste | Destroyed C-40 Crusher 9327 | -7/Waste | EMP discharged 9327 | -7/Waste | System corruption reached 30% 9377 | -7/Waste | Discovered new exit (range 16) 9400 | -7/Waste | Identified Damper Plating 9427 | -7/Waste | EMP discharged 9527 | -7/Waste | EMP discharged 9627 | -7/Waste | EMP discharged 9727 | -7/Waste | EMP discharged 9827 | -7/Waste | EMP discharged 9927 | -7/Waste | EMP discharged 10027 | -7/Waste | EMP discharged 10127 | -7/Waste | EMP discharged 10227 | -7/Waste | EMP discharged 10327 | -7/Waste | EMP discharged 10427 | -7/Waste | EMP discharged 10527 | -7/Waste | EMP discharged 10627 | -7/Waste | EMP discharged 10727 | -7/Waste | EMP discharged 10827 | -7/Waste | EMP discharged 10927 | -7/Waste | EMP discharged 11027 | -7/Waste | EMP discharged 11127 | -7/Waste | EMP discharged 11227 | -7/Waste | EMP discharged 11327 | -7/Waste | EMP discharged 11427 | -7/Waste | EMP discharged 11527 | -7/Waste | EMP discharged 11627 | -7/Waste | EMP discharged 11727 | -7/Waste | EMP discharged 11827 | -7/Waste | EMP discharged 11927 | -7/Waste | EMP discharged 12027 | -7/Waste | EMP discharged 12127 | -7/Waste | EMP discharged 12227 | -7/Waste | EMP discharged 12327 | -7/Waste | EMP discharged 12427 | -7/Waste | EMP discharged 12527 | -7/Waste | EMP discharged 12627 | -7/Waste | EMP discharged 12727 | -7/Waste | EMP discharged 12827 | -7/Waste | EMP discharged 12927 | -7/Waste | EMP discharged 13027 | -7/Waste | EMP discharged 13127 | -7/Waste | EMP discharged 13227 | -7/Waste | EMP discharged 13327 | -7/Waste | EMP discharged 13427 | -7/Waste | EMP discharged 13527 | -7/Waste | EMP discharged 13627 | -7/Waste | EMP discharged 13727 | -7/Waste | EMP discharged 13827 | -7/Waste | EMP discharged 13927 | -7/Waste | EMP discharged 14027 | -7/Waste | EMP discharged 14127 | -7/Waste | EMP discharged 14227 | -7/Waste | EMP discharged 14327 | -7/Waste | EMP discharged 14427 | -7/Waste | EMP discharged 14527 | -7/Waste | EMP discharged 14627 | -7/Waste | EMP discharged 14727 | -7/Waste | EMP discharged 14827 | -7/Waste | EMP discharged 14927 | -7/Waste | EMP discharged 15027 | -7/Waste | EMP discharged 15127 | -7/Waste | EMP discharged 15227 | -7/Waste | EMP discharged 15327 | -7/Waste | EMP discharged 15427 | -7/Waste | EMP discharged 15527 | -7/Waste | EMP discharged 15627 | -7/Waste | EMP discharged 15727 | -7/Waste | EMP discharged 15827 | -7/Waste | EMP discharged 15927 | -7/Waste | EMP discharged 16027 | -7/Waste | EMP discharged 16127 | -7/Waste | EMP discharged 16227 | -7/Waste | EMP discharged 16327 | -7/Waste | EMP discharged 16427 | -7/Waste | EMP discharged 16527 | -7/Waste | EMP discharged 16627 | -7/Waste | EMP discharged 16646 | -7/Waste | Entered Factory 16756 | -7/Factory | Repaired Arm. Wheel 17558 | -7/Factory | Identified exit to Lower Caves 17650 | -7/Factory | Discovered new exit (range 9) 17841 | -7/Factory | Destroyed 10 combat bots 17899 | -7/Factory | Discovered new exit (range 12) 18461 | -7/Factory | Repaired Imp. Medium Armor Plating 18610 | -7/Factory | Repaired Hrd. Medium Armor Plating 18643 | -7/Factory | Repaired Arm. Wheel 18811 | -7/Factory | Fabricated Hvy. Reactive Plating (x1) 18908 | -7/Factory | Fabricated Hvy. Reactive Plating? 19345 | -7/Factory | Entered Lower Caves 19444 | -7/Lower Caves | Attracted the attention of an 0b10 outpost 19501 | -7/Lower Caves | Lost 4 parts (1p2n1w) 19519 | -7/Lower Caves | Destroyed 8 combat bots 19713 | -7/Lower Caves | A Derelict revealed a hidden shortcut to a safe place 19716 | -7/Lower Caves | Identified exit to Zion 19937 | -7/Lower Caves | Discovered new exit (range 8) 20001 | -7/Lower Caves | Learned 12 Factory zone layouts 20130 | -7/Lower Caves | Identified exit to Lower Caves 20137 | -7/Lower Caves | Entered another Lower Caves area 20137 | -7/Lower Caves | Accompanied by 1 ally 20149 | -7/Lower Caves | Discovered new exit (range 15) 20165 | -7/Lower Caves | Identified exit to Factory 20215 | -7/Lower Caves | Acquired the password to a Derelict Tinkerer's latest research 20225 | -7/Lower Caves | Found Prototype Special Weapon 21154 | -7/Lower Caves | P-70 Sage assimilated allied Fighter 4a 21155 | -7/Lower Caves | Caught by Unaware searching for contraband prototypes 21164 | -7/Lower Caves | Caught by Unaware searching for contraband prototypes 21358 | -7/Lower Caves | Ambushed by wild Derelicts 21564 | -7/Lower Caves | Core integrity fell below 50% 21721 | -7/Lower Caves | Found Alien Artifact 21721 | -7/Lower Caves | Identified Core Expander 21721 | -7/Lower Caves | Installed Core Expander, added new Propulsion slot 21887 | -7/Lower Caves | Discovered new exit (range 8) 21894 | -7/Lower Caves | Identified exit to Data Miner 22024 | -7/Lower Caves | Entered Data Miner 22024 | -7/Data Miner | Discovered new exit (range 7) 22032 | -7/Data Miner | Identified exit to Proximity Caves 22049 | -7/Data Miner | Met Data Miner 22073 | -7/Data Miner | Learned location of Section 7 (-2) 22073 | -7/Data Miner | Acquired the access code to Warlord's prototype stash 22095 | -7/Data Miner | Received God Mode back door access code from Data Miner 22131 | -7/Data Miner | Identified Molecular Deconstructor 22358 | -7/Data Miner | Destroyed Data Miner 22361 | -7/Data Miner | Interfaced with the Data Conduit 22667 | -7/Data Miner | Found Ghost Barrier 22670 | -7/Data Miner | Found System Mapper 22673 | -7/Data Miner | Found Deep Network Scanner 22778 | -7/Data Miner | Entered Proximity Caves 23579 | -6/Proximity Caves | Discovered exit to Factory (range 11) 23622 | -6/Proximity Caves | Entered Factory 23622 | -6/Factory | Evolved 2 slots: Power x1, Utility x1 23623 | -6/Factory | Identified exit to Factory 23624 | -6/Factory | Loaded intel: 238 machine locations 25287 | -6/Factory | Intercept squad dispatched 25291 | -6/Factory | Spotted Tracker 25309 | -6/Factory | Spotted Combat Programmer 25389 | -6/Factory | Destroyed Tracker 25391 | -6/Factory | Found Exp. Phase Shifter 25499 | -6/Factory | Destroyed Combat Programmer 25511 | -6/Factory | Found EMDS 25538 | -6/Factory | Found Exp. Focal Shield 25581 | -6/Factory | Found Exp. Remote Datajack 26181 | -6/Factory | Intercept squad dispatched 26236 | -6/Factory | Spotted Tracker 26236 | -6/Factory | Spotted Tracker 26257 | -6/Factory | Destroyed Tracker 26260 | -6/Factory | Garrison activated, responded to threat 26260 | -6/Factory | Destroyed Tracker 26280 | -6/Factory | Spotted Combat Programmer 26309 | -6/Factory | Found Exp. Targeting Computer 26342 | -6/Factory | Spotted Combat Programmer 26837 | -6/Factory | Garrison activated, responded to threat 27430 | -6/Factory | Garrison activated, responded to threat 27621 | -6/Factory | Crushed by falling debris 27895 | -6/Factory | Garrison activated, responded to threat 28594 | -6/Factory | Fabricated Armor Integrity Analyzer? 28607 | -6/Factory | Local fabrication network quarantined 28872 | -6/Factory | Intercept squad dispatched 28895 | -6/Factory | Spotted Tracker 28896 | -6/Factory | Spotted Tracker 28897 | -6/Factory | Spotted Tracker 28918 | -6/Factory | Spotted Combat Programmer 28918 | -6/Factory | Destroyed Tracker 28927 | -6/Factory | Destroyed Tracker 28943 | -6/Factory | Destroyed Tracker 28946 | -6/Factory | Found Immobilizer 28952 | -6/Factory | Spotted Combat Programmer 28952 | -6/Factory | Spotted Combat Programmer 28964 | -6/Factory | Destroyed Combat Programmer 28981 | -6/Factory | Destroyed Combat Programmer 28997 | -6/Factory | Lost 3 parts (2n1u) 29006 | -6/Factory | Destroyed Combat Programmer 29169 | -6/Factory | Discovered exit to Factory (range 13) 29222 | -6/Factory | First assault squad dispatched 29240 | -6/Factory | Sucked down chute 29240 | -6/Factory | Entered Waste 29240 | -6/Waste | The area was eerily silent 29361 | -6/Waste | Found Damper Plating 29428 | -6/Waste | Found Damper Plating 29465 | -6/Waste | Discovered new exit (range 13) 29467 | -6/Waste | Found Damper Plating 29492 | -6/Waste | Found Damper Plating 29743 | -6/Waste | Identified exit to Factory 29745 | -6/Waste | Entered Factory 29746 | -6/Factory | Loaded intel: 242 machine locations 29825 | -6/Factory | Spotted B-75 Beast 30223 | -6/Factory | Intercept squad dispatched 30238 | -6/Factory | Spotted Tracker 30251 | -6/Factory | Destroyed Tracker 30277 | -6/Factory | Spotted Combat Programmer 30570 | -6/Factory | Destroyed Combat Programmer 30851 | -6/Factory | Repaired Hvy. Reactive Plating 31144 | -6/Factory | Intercept squad dispatched 31159 | -6/Factory | Destroyed Tracker 31177 | -6/Factory | Spotted Tracker 31179 | -6/Factory | Destroyed Tracker 31209 | -6/Factory | Spotted Combat Programmer 31227 | -6/Factory | Spotted Combat Programmer 31286 | -6/Factory | Core integrity fell below 50% 31354 | -6/Factory | Destroyed Combat Programmer 31367 | -6/Factory | Destroyed Combat Programmer 31382 | -6/Factory | Found EMDS 31692 | -6/Factory | Fabricated Hvy. Reactive Plating? 32042 | -6/Factory | Discovered new exit (range 3) 32044 | -6/Factory | Identified exit to Lower Caves 32113 | -6/Factory | Entered Lower Caves 32192 | -6/Lower Caves | Encountered a Warlord checkpoint 32410 | -6/Lower Caves | Learned location of 1 exit from Factory 32605 | -6/Lower Caves | Discovered new exit (range 7) 32633 | -6/Lower Caves | Identified exit to Lower Caves 32638 | -6/Lower Caves | Entered another Lower Caves area 32701 | -6/Lower Caves | Discovered exit to Factory (range 12) 32761 | -6/Lower Caves | Learned location of 1 exit from Factory 32768 | -6/Lower Caves | Learned Factory terminal intel 33290 | -6/Lower Caves | Discovered exit to Zion (range 4) 33298 | -6/Lower Caves | Entered Zion 33334 | -6/Zion | Discovered new exit (range 15) 33476 | -6/Zion | Found Prototype Device 33476 | -6/Zion | Identified Mobile Refinery Mk. CCLXVII 33937 | -6/Zion | Received a visual enhancement algorithm 36784 | -6/Zion | Gained Derelict followers 36871 | -6/Zion | Attacked by Zionites 37722 | -6/Zion | Build established: Hauler-Skirmisher 38140 | -6/Zion | Destroyed Imprinter 38327 | -6/Zion | Spotted J7-45N(B) 38357 | -6/Zion | Destroyed J7-45N(B) 38647 | -6/Zion | Build established: Scavenger-Mutant 38727 | -6/Zion | Spotted AT-WRO(B) 38746 | -6/Zion | Destroyed AT-WRO(B) 39279 | -6/Zion | Build established: Hauler-Mutant 39279 | -6/Zion | Identified exit to Proximity Caves 39308 | -6/Zion | Entered Proximity Caves 40571 | -5/Proximity Caves | Learned 4 Factory zone layouts 40691 | -5/Proximity Caves | Discovered exit to Factory (range 4) 40783 | -5/Proximity Caves | Entered Factory 40783 | -5/Factory | Evolved 2 slots: Utility x2 40784 | -5/Factory | Identified exit to Extension 40785 | -5/Factory | Identified exit to Factory 40785 | -5/Factory | Identified exit to Upper Caves 40787 | -5/Factory | Loaded intel: 278 machine locations 40788 | -5/Factory | Loaded intel: 21 terminal locations 40869 | -5/Factory | Destroyed 8 combat bots 41476 | -5/Factory | Garrison activated, responded to threat 41748 | -5/Factory | Sucked down chute 41748 | -5/Factory | Entered Waste 41748 | -5/Waste | The area was eerily silent 41862 | -5/Waste | Found Damper Plating 41902 | -5/Waste | Found Damper Plating 42034 | -5/Waste | Discovered new exit (range 14) 42040 | -5/Waste | A Compactor rumbled back to life 42046 | -5/Waste | Spotted C-40 Crusher 42049 | -5/Waste | Destroyed C-40 Crusher 42331 | -5/Waste | Found Damper Plating 42602 | -5/Waste | Identified exit to Factory 42603 | -5/Waste | Entered Factory 42605 | -5/Factory | Loaded intel: 294 machine locations 43063 | -5/Factory | Repaired Hvy. Reactive Plating? 43134 | -5/Factory | Repaired Hvy. Reactive Plating 43215 | -5/Factory | Repaired Exp. Weapon Shielding? 43247 | -5/Factory | Repaired Hcp. Storage Unit 43296 | -5/Factory | Repaired Hcp. Storage Unit 43323 | -5/Factory | Repaired Hcp. Storage Unit 43351 | -5/Factory | Repaired Hcp. Storage Unit 43765 | -5/Factory | Discovered exit to Extension (range 16) 43846 | -5/Factory | Entered Extension 43846 | -5/Extension | Accompanied by 2 allies 43847 | -5/Extension | Loaded intel: 37 machine locations 44574 | -5/Extension | Spotted B-75 Beast 44750 | -5/Extension | Destroyed B-75 Beast 45144 | -5/Extension | Destroyed B-75 Beast 45349 | -5/Extension | Rescued A7 45778 | -5/Extension | Discovered new exit (range 16) 45780 | -5/Extension | Discovered exit to Factory (range 14) 45889 | -5/Extension | Identified exit to Cetus 46066 | -5/Extension | Entered Cetus 46066 | -5/Cetus | Accompanied by 8 allies 46067 | -5/Cetus | Loaded intel: 24 machine locations 46071 | -5/Cetus | Acquired a Cetus Manufacturing Module code from A7 46118 | -5/Cetus | Spotted Cetus Guard 46118 | -5/Cetus | Spotted Cetus Guard 46124 | -5/Cetus | Destroyed Cetus Guard 46124 | -5/Cetus | Spotted Cetus Guard 46129 | -5/Cetus | Allies destroyed Cetus Guard 46129 | -5/Cetus | Spotted Cetus Guard 46137 | -5/Cetus | Allies destroyed Cetus Guard 46139 | -5/Cetus | Destroyed Cetus Guard 46207 | -5/Cetus | Started Cetus Manufacturing Module 46230 | -5/Cetus | Escorted A7 to Cetus Mainframe 46232 | -5/Cetus | Manufactured an Enhanced Grunt 46257 | -5/Cetus | Manufactured an Enhanced Grunt 46282 | -5/Cetus | Manufactured an Enhanced Grunt 46307 | -5/Cetus | Manufactured an Enhanced Grunt 46332 | -5/Cetus | Manufactured an Enhanced Grunt 46429 | -5/Cetus | Discovered new exit (range 15) 46461 | -5/Cetus | Spotted Cetus Guard 46461 | -5/Cetus | Spotted Cetus Guard 46467 | -5/Cetus | Allies destroyed Cetus Guard 46467 | -5/Cetus | Spotted Cetus Guard 46467 | -5/Cetus | Spotted Cetus Guard 46468 | -5/Cetus | Destroyed Cetus Guard 46473 | -5/Cetus | Destroyed Cetus Guard 46477 | -5/Cetus | Allies destroyed Cetus Guard 46497 | -5/Cetus | Discovered exit to Factory (range 15) 46504 | -5/Cetus | Met Revision 17 46661 | -5/Cetus | Identified exit to Archives 46667 | -5/Cetus | Entered Archives 46667 | -5/Archives | Accompanied by 8 allies 46668 | -5/Archives | Loaded intel: 8 machine locations 46672 | -5/Archives | Received a hacking code to weaken MAIN.C 46756 | -5/Archives | Discovered new exit (range 16) 46768 | -5/Archives | Discovered new exit (range 16) 46802 | -5/Archives | Identified exit to Hub_04(d) 46809 | -5/Archives | Entered Hub_04(d) 46809 | -5/Hub_04(d) | Accompanied by 7 allies 46810 | -5/Hub_04(d) | Loaded intel: 92 machine locations 46810 | -5/Hub_04(d) | Discovered exit to Factory (range 11) 46903 | -5/Hub_04(d) | Discovered exit to Factory (range 16) 47062 | -5/Hub_04(d) | Spotted B-75 Beast 47080 | -5/Hub_04(d) | Allies destroyed B-75 Beast 47157 | -5/Hub_04(d) | Discovered exit to Factory (range 7) 47255 | -5/Hub_04(d) | Network Hub disabled 47273 | -5/Hub_04(d) | Network Hub disabled 47286 | -5/Hub_04(d) | Spotted Lightning 47289 | -5/Hub_04(d) | Spotted Lightning 47290 | -5/Hub_04(d) | Spotted Lightning 47292 | -5/Hub_04(d) | Spotted Lightning 47307 | -5/Hub_04(d) | Spotted Lightning 47331 | -5/Hub_04(d) | Spotted Lightning 47334 | -5/Hub_04(d) | Destroyed Lightning 47358 | -5/Hub_04(d) | Destroyed Lightning 47367 | -5/Hub_04(d) | Destroyed Lightning 47390 | -5/Hub_04(d) | Destroyed Lightning 47404 | -5/Hub_04(d) | Destroyed Lightning 47409 | -5/Hub_04(d) | First assault squad dispatched 47418 | -5/Hub_04(d) | Destroyed Lightning 47436 | -5/Hub_04(d) | Found EM Dispersion Field 47450 | -5/Hub_04(d) | Found EM Dispersion Field 47457 | -5/Hub_04(d) | Entered Factory 47457 | -4/Factory | Evolved 2 slots: Utility x2 47458 | -4/Factory | Loaded intel: 256 machine locations 47508 | -4/Factory | Discovered new exit (range 6) 47517 | -4/Factory | Identified exit to Research 47707 | -4/Factory | First assault squad dispatched 47793 | -4/Factory | Destroyed 7 combat bots 47963 | -4/Factory | Repaired Broken Arm. Huge Wheel 48014 | -4/Factory | Repaired Hvy. Reactive Plating 48089 | -4/Factory | Repaired Quantum Reactor 48302 | -4/Factory | Intercept squad dispatched 48315 | -4/Factory | Spotted Tracker 48316 | -4/Factory | Spotted Tracker 48328 | -4/Factory | Destroyed Tracker 48332 | -4/Factory | Destroyed Tracker 48343 | -4/Factory | Spotted Combat Programmer 48359 | -4/Factory | Destroyed Combat Programmer 48376 | -4/Factory | Spotted Combat Programmer 48385 | -4/Factory | Destroyed Combat Programmer 48438 | -4/Factory | Found Exp. Phase Shifter 48594 | -4/Factory | Sucked down chute 48594 | -4/Factory | Entered Waste 48664 | -4/Waste | Destroyed C-40 Crusher 48665 | -4/Waste | Spotted C-40 Crusher 48672 | -4/Waste | Destroyed C-40 Crusher 48683 | -4/Waste | Destroyed C-40 Crusher 48694 | -4/Waste | Found Damper Plating 48705 | -4/Waste | Found Damper Plating 48721 | -4/Waste | Destroyed C-40 Crusher 48727 | -4/Waste | Spotted C-40 Crusher 48738 | -4/Waste | Destroyed C-40 Crusher 48745 | -4/Waste | Destroyed C-40 Crusher 48758 | -4/Waste | Found Damper Plating 48891 | -4/Waste | Discovered new exit (range 13) 49225 | -4/Waste | Identified exit to Factory 52790 | -4/Waste | Entered Factory 52791 | -4/Factory | Loaded intel: 288 machine locations 52837 | -4/Factory | Identified exit to Upper Caves 52900 | -4/Factory | Repaired Exp. Weapon Shielding? 52971 | -4/Factory | Repaired Hvy. Reactive Plating? 53077 | -4/Factory | Repaired Centrium Heavy Treads? 53333 | -4/Factory | Repaired Quantum Reactor 53372 | -4/Factory | Discovered exit to Research (range 8) 53399 | -4/Factory | Intercept squad dispatched 53411 | -4/Factory | Spotted Tracker 53412 | -4/Factory | Spotted Combat Programmer 53426 | -4/Factory | Destroyed Tracker 53458 | -4/Factory | Destroyed Combat Programmer 53832 | -4/Factory | Found Quantum Capacitor 54611 | -4/Factory | Intercept squad dispatched 54621 | -4/Factory | Spotted Tracker 54622 | -4/Factory | Spotted Tracker 54625 | -4/Factory | Destroyed Tracker 54632 | -4/Factory | Destroyed Tracker 54649 | -4/Factory | Found Exp. Phase Shifter 54670 | -4/Factory | Spotted Combat Programmer 54676 | -4/Factory | Destroyed Combat Programmer 54688 | -4/Factory | Spotted Combat Programmer 54793 | -4/Factory | Destroyed Combat Programmer 54846 | -4/Factory | Intercept squad dispatched 54852 | -4/Factory | Spotted Tracker 54853 | -4/Factory | Spotted Tracker 54853 | -4/Factory | Destroyed Tracker 54853 | -4/Factory | Spotted Tracker 54856 | -4/Factory | Destroyed Tracker 54856 | -4/Factory | Destroyed Tracker 54864 | -4/Factory | Destroyed Tracker 54899 | -4/Factory | Destroyed 7 combat bots 54902 | -4/Factory | Spotted Combat Programmer 54916 | -4/Factory | Spotted Combat Programmer 54916 | -4/Factory | Spotted Combat Programmer 54927 | -4/Factory | Destroyed Combat Programmer 54929 | -4/Factory | Spotted Combat Programmer 54942 | -4/Factory | Destroyed Combat Programmer 54952 | -4/Factory | Destroyed Combat Programmer 54962 | -4/Factory | Destroyed Combat Programmer 55040 | -4/Factory | First assault squad dispatched 55388 | -4/Factory | Entered Upper Caves 55730 | -4/Upper Caves | Encountered a Warlord checkpoint 55901 | -4/Upper Caves | Learned 4 Research zone layouts 55958 | -4/Upper Caves | Discovered new exit (range 9) 55968 | -4/Upper Caves | Identified exit to Upper Caves 56125 | -4/Upper Caves | Entered another Upper Caves area 56489 | -4/Upper Caves | Learned Armory stockpile data 56489 | -4/Upper Caves | Learned Factory security intel 56489 | -4/Upper Caves | Learned Factory garrison access intel 56597 | -4/Upper Caves | Discovered new exit (range 8) 56606 | -4/Upper Caves | Identified exit to Zhirov 56686 | -4/Upper Caves | Entered Zhirov 56686 | -4/Zhirov | Discovered new exit (range 3) 56697 | -4/Zhirov | Identified exit to Proximity Caves 56715 | -4/Zhirov | Met Zhirov 56781 | -4/Zhirov | Zhirov requested help retrieving the SGEMP Prototype 56875 | -4/Zhirov | Found Alien Artifact 56875 | -4/Zhirov | Identified Integrated Reactor 56875 | -4/Zhirov | Installed Integrated Reactor, increased core energy generation (+2%) 56893 | -4/Zhirov | Found Alien Artifact 57038 | -4/Zhirov | Entered Proximity Caves 57547 | -3/Proximity Caves | Discovered exit to Research (range 11) 57589 | -3/Proximity Caves | Entered Research 57589 | -3/Research | Evolved 2 slots: Utility x2 57590 | -3/Research | Identified exit to Armory 57592 | -3/Research | Loaded intel: 83 machine locations 57708 | -3/Research | Identified exit to Testing 58184 | -3/Research | P-80 Master assimilated allied Administrator 8a 58625 | -3/Research | Intercept squad dispatched 58652 | -3/Research | Spotted Tracker 58669 | -3/Research | Destroyed Tracker 58765 | -3/Research | Spotted Combat Programmer 58779 | -3/Research | Fabricated Exp. Signal Interpreter? 58866 | -3/Research | Destroyed Combat Programmer 58884 | -3/Research | Intercept squad dispatched 58897 | -3/Research | Spotted Tracker 58898 | -3/Research | Spotted Tracker 58898 | -3/Research | Spotted Tracker 58904 | -3/Research | Destroyed Tracker 58910 | -3/Research | Destroyed Tracker 58916 | -3/Research | Destroyed Tracker 58970 | -3/Research | Destroyed 7 combat bots 58972 | -3/Research | Spotted Combat Programmer 59002 | -3/Research | Spotted Combat Programmer 59014 | -3/Research | Spotted Combat Programmer 59015 | -3/Research | Destroyed Combat Programmer 59025 | -3/Research | Destroyed Combat Programmer 59128 | -3/Research | Destroyed Combat Programmer 59266 | -3/Research | Fabricated Hvy. Reactive Plating? 59338 | -3/Research | Fabricated Hvy. Reactive Plating (x1) 59385 | -3/Research | Fabricated Hvy. Reactive Plating (x1) 59434 | -3/Research | Fabricated Hvy. Reactive Plating (x1) 59704 | -3/Research | Local fabrication network quarantined 59755 | -3/Research | Entered Testing 59756 | -3/Testing | Loaded intel: 66 machine locations 59785 | -3/Testing | Found Enh. Force Lance 59836 | -3/Testing | Found Prototype Energy Gun 59836 | -3/Testing | Identified Hyp. EM Gauss Rifle 59867 | -3/Testing | Found Prototype Leg 59867 | -3/Testing | Identified Myomer Exoskeleton 60100 | -3/Testing | Repaired Imp. Force Field 60253 | -3/Testing | Found Prototype Ballistic Cannon 60256 | -3/Testing | Identified Perforator 60310 | -3/Testing | Scanned by Researcher 60443 | -3/Testing | Found Prototype Protection 60443 | -3/Testing | Identified SHELL Armor 60446 | -3/Testing | Found Prototype Protection 60446 | -3/Testing | Identified Hvy. Regenerative Plating 60457 | -3/Testing | Identified exit to Research 60654 | -3/Testing | Intercept squad dispatched 60662 | -3/Testing | Spotted Tracker 60663 | -3/Testing | Spotted Tracker 60676 | -3/Testing | Destroyed Tracker 60690 | -3/Testing | Destroyed Tracker 60701 | -3/Testing | Spotted Combat Programmer 60706 | -3/Testing | Spotted Combat Programmer 60781 | -3/Testing | Destroyed Combat Programmer 60829 | -3/Testing | Destroyed Combat Programmer 61089 | -3/Testing | Destroyed 7 combat bots 61471 | -3/Testing | Found Prototype Energy Cannon 61471 | -3/Testing | Identified Cld. Nova Cannon 61699 | -3/Testing | Entered Research 61699 | -2/Research | Evolved 2 slots: Weapon x2 61700 | -2/Research | Loaded intel: 122 machine locations 61833 | -2/Research | Garrison activated, responded to threat 61949 | -2/Research | First assault squad dispatched 61996 | -2/Research | Discovered new exit (range 9) 62008 | -2/Research | Identified exit to Quarantine 62012 | -2/Research | Entered Quarantine 62013 | -2/Quarantine | Loaded intel: 82 machine locations 62152 | -2/Quarantine | Found Fusion Bomb Launcher 62161 | -2/Quarantine | Found Exp. Armor Integrity Analyzer 62506 | -2/Quarantine | Found Alien Artifact 62507 | -2/Quarantine | Identified Stasis Generator 62560 | -2/Quarantine | P-80 Master assimilated allied Administrator 9a 62659 | -2/Quarantine | Found Alien Artifact 62805 | -2/Quarantine | Intercept squad dispatched 62806 | -2/Quarantine | Found Prototype Energy Gun 62809 | -2/Quarantine | Spotted Tracker 62810 | -2/Quarantine | Spotted Tracker 62830 | -2/Quarantine | Identified Enh. Gamma Rifle 62831 | -2/Quarantine | Spotted Combat Programmer 62833 | -2/Quarantine | Spotted Combat Programmer 62861 | -2/Quarantine | Destroyed Combat Programmer 62871 | -2/Quarantine | Destroyed Tracker 62905 | -2/Quarantine | Found Alien Impact Weapon 62905 | -2/Quarantine | Identified Core Stripper 62914 | -2/Quarantine | Destroyed Combat Programmer 62995 | -2/Quarantine | Found EMDS 63088 | -2/Quarantine | Found Alien Artifact 63088 | -2/Quarantine | Identified Matter Drive 63317 | -2/Quarantine | Repaired Broken Hvy. Siege Treads 63330 | -2/Quarantine | Discovered new exit (range 15) 63440 | -2/Quarantine | Found Alien Artifact 63441 | -2/Quarantine | Identified Subatomic Replicator 64184 | -2/Quarantine | Found Alien Energy Cannon 64184 | -2/Quarantine | Identified Core Cannon 64314 | -2/Quarantine | Identified Core Reset Matrix 64315 | -2/Quarantine | Identified Transdimensional Reconstructor 64322 | -2/Quarantine | Intercept squad dispatched 64328 | -2/Quarantine | Spotted Tracker 64329 | -2/Quarantine | Spotted Tracker 64330 | -2/Quarantine | Spotted Tracker 64347 | -2/Quarantine | Destroyed Tracker 64372 | -2/Quarantine | Destroyed Tracker 64387 | -2/Quarantine | Destroyed Tracker 64393 | -2/Quarantine | Spotted Combat Programmer 64393 | -2/Quarantine | Spotted Combat Programmer 64394 | -2/Quarantine | Spotted Combat Programmer 64394 | -2/Quarantine | Warped through subspace 64441 | -2/Quarantine | Lost 3 parts (2u1w) 64511 | -2/Quarantine | System corruption reached 10% 64533 | -2/Quarantine | Destroyed Combat Programmer 64560 | -2/Quarantine | Lost 5 parts (1p2n2u) 64577 | -2/Quarantine | Crushed by falling debris 64644 | -2/Quarantine | Destroyed Combat Programmer 64656 | -2/Quarantine | Found Enh. Gamma Rifle 64672 | -2/Quarantine | Destroyed Combat Programmer 64678 | -2/Quarantine | Found Exp. Focal Shield 64684 | -2/Quarantine | Found EMDS 64817 | -2/Quarantine | Found Exp. Phase Shifter 65043 | -2/Quarantine | Spotted Fortress 65109 | -2/Quarantine | Lost 3 parts (2n1w) 65155 | -2/Quarantine | Destroyed Fortress 65182 | -2/Quarantine | Lost 4 parts (1p1n2u) 65195 | -2/Quarantine | Found Centrium Heavy Armor Plating 65206 | -2/Quarantine | Found EM Dispersion Field 65262 | -2/Quarantine | First assault squad dispatched 65456 | -2/Quarantine | Found Thermal Barrier 65510 | -2/Quarantine | Intercept squad dispatched 65520 | -2/Quarantine | Spotted Tracker 65522 | -2/Quarantine | Spotted Tracker 65524 | -2/Quarantine | Spotted Tracker 65525 | -2/Quarantine | Spotted Tracker 65528 | -2/Quarantine | Destroyed Tracker 65530 | -2/Quarantine | Destroyed Tracker 65532 | -2/Quarantine | Destroyed Tracker 65540 | -2/Quarantine | Destroyed Tracker 65599 | -2/Quarantine | Spotted Combat Programmer 65609 | -2/Quarantine | Discovered new exit (range 6) 65616 | -2/Quarantine | Identified exit to Section 7 65618 | -2/Quarantine | Entered Section 7 65619 | -2/Section 7 | Loaded intel: 149 machine locations 65760 | -2/Section 7 | Spotted S7 Guard 65788 | -2/Section 7 | Destroyed S7 Guard 65808 | -2/Section 7 | Found Alien Artifact 65848 | -2/Section 7 | Identified Integrated Heat Negator 65848 | -2/Section 7 | Installed Integrated Heat Negator, increased core heat dissipation (+2%) 65868 | -2/Section 7 | First assault squad dispatched 66062 | -2/Section 7 | Found Alien Artifact 66070 | -2/Section 7 | Identified Integrity Redistributor 66070 | -2/Section 7 | Used Integrity Redistributor, redistributed integrity from core (-347) 66071 | -2/Section 7 | Core integrity fell below 50% 66385 | -2/Section 7 | Intercept squad dispatched 66394 | -2/Section 7 | Spotted Tracker 66404 | -2/Section 7 | Destroyed Tracker 66421 | -2/Section 7 | Spotted Combat Programmer 66424 | -2/Section 7 | Destroyed Combat Programmer 66426 | -2/Section 7 | Spotted Combat Programmer 66429 | -2/Section 7 | Destroyed Combat Programmer 66440 | -2/Section 7 | Found Exp. Phase Shifter 66455 | -2/Section 7 | Spotted Tracker 66456 | -2/Section 7 | Destroyed Tracker 66954 | -2/Section 7 | Destroyed 15 combat bots 67042 | -2/Section 7 | Discovered new exit (range 5) 67047 | -2/Section 7 | Identified exit to Access 67178 | -2/Section 7 | Intercept squad dispatched 67180 | -2/Section 7 | Spotted Tracker 67180 | -2/Section 7 | Spotted Tracker 67180 | -2/Section 7 | Spotted Tracker 67189 | -2/Section 7 | Destroyed Tracker 67190 | -2/Section 7 | Spotted Combat Programmer 67192 | -2/Section 7 | Destroyed Tracker 67196 | -2/Section 7 | Destroyed Tracker 67198 | -2/Section 7 | Spotted Combat Programmer 67198 | -2/Section 7 | Spotted Combat Programmer 67209 | -2/Section 7 | High security lockdown imminent 67209 | -2/Section 7 | Destroyed Executioner 67209 | -2/Section 7 | Scanned by Researcher 67210 | -2/Section 7 | Destroyed Executioner 67224 | -2/Section 7 | Destroyed Combat Programmer 67229 | -2/Section 7 | Destroyed Combat Programmer 67234 | -2/Section 7 | Destroyed Combat Programmer 67271 | -2/Section 7 | Core integrity fell below 20% 67280 | -2/Section 7 | System corruption reached 30% 67289 | -2/Section 7 | High security lockdown engaged 67296 | -2/Section 7 | Lost 3 parts (1u2w) 67338 | -2/Section 7 | Destroyed 38 combat bots 67443 | -2/Section 7 | Spotted Investigator 67448 | -2/Section 7 | Destroyed Investigator 67484 | -2/Section 7 | Destroyed 19 combat bots 67531 | -2/Section 7 | Found Transdimensional Reconstructor 67617 | -2/Section 7 | Spotted Executioner 67618 | -2/Section 7 | Destroyed by S-43 Plague with Heavy Machine Gun Last Messages --------------- 67608_ Activated siege mode. 67608_ Exp. Biometal Heavy Treads destroyed. 67608_ Penetrated by Slug. 67609_ System corrupted: Fusion Bomb Launcher targeting data glitched. 67609_ L-61 Swordsman destroyed. 67611_ Penetrated by Slug. 67611_ Slug penetrates Machine. 67611_ System corrupted: Fusion Bomb Launcher failed to launch. 67613_ G-73 Enforcer destroyed. 67613_ Destroyed Myomer Leg. 67613_ L-61 Swordsman destroyed. 67613_ G-73 Enforcer destroyed. 67614_ Slug penetrates Machine. 67614_ Slug penetrates Reinforced Barrier. 67614_ Slug penetrates Machine. 67615_ System corrupted: Fusion Bomb Launcher failed to launch. 67617_ G-73 Enforcer destroyed. 67617_ Destroyed Phase Gun. 67617_ Destroyed Hvy. Laser. 67618_ System corrupted: Matter fused (-7). Map ----- +----------------------------------------------------+ | | | | | | | | | | | | | | | | | | | | | | | | | | | | | | | ?????????????????????????????????????????????????? | | ?????????????????????????????????????????????????? | | ?????????????????????????????????????????????????? | | ?????????????????????????????????????????????????? | | ?????????????????????????????????????????????????? | | ?????????????????????????????????????????????????? | | ?????????????????????????????????????????????????? | | ????????????????????####?????????????????????????? | | ??################### #############??######?###?? | | ??#""""" " """#?"#T T#"" #"" | | ??#" % % = @ """"""#??" #?" | | ??#" p !% " #### # " #"" | | ###" g ####### | | # % "" | | = = ==E """ | | %*%% = "?"" !== | | ##= %!! %* "??"" |! =!| | | ??# /*= %!s "?"?"" !!* ! | | ??#" ! "????"" """"= | | ???" = "??"?""" """" | | ???"! ! !% "??????"" """" | | ???"%! ! " "???"?"""" "??"? | | ???"! " "??????? ""?"? | | ???" % "?????""""""" ????? | | ???" %! """""" "??????"""""" ????? | | ???" %= """"""""" "?????""""""" ???? | | ???" = """"""??? ?????????? ?????? | | ???" ???????? ???????? ?????? | | ???" ???????? ??????? ?"????? | | ???" """"""??? ???????? """????? | | ???" """"""""" ?"???????? "??????? | | ???" """"""???? ? """""???????????????????? | | ???"?? ???????????????"""??????""""?"?"?"????? | | ???"???? ?????????????"""""?????????"?"?"?"????? | | ???"??????????????????????"???????????"?"?"?"?"""? | +----------------------------------------------------+ Best States ------------- Heat Dissipation 89 Coolant Potential 100 Energy Generation 59 Energy Capacity 1320 Matter Stores 300 Matter Capacity 550 Sight Range 22 Robot Scan Range 20 Terrain Scan Density 10 Additional Mass Support 20 EM Shielding 4 Armor Coverage 3000 Resistance: KI 40 Resistance: TH 50 Resistance: EM 90 Core Shielding 20 Power Shielding 33 Weapon Shielding 90 Phase Shifting 20 Evasion (%) 60 Armor Integrity Analysis 66 Recoil Reduction 4 Matter Filtering 50 Particle Charging 30 Kinecelleration 30 Offensive Hacking 25 Defensive Hacking 14 Item Schematics ----------------- Arm. Wheel | -8/Materials | Scanalyzed Armor Integrity Analyzer | -8/Materials | Hacked Lrg. Storage Unit | -8/Materials | Hacked Greatsword | -8/Materials | Scanalyzed Hvy. Reactive Plating | -7/Factory | Hacked Adv. Signal Interpreter | -7/Factory | Hacked Hvy. Armor Plating | -7/Factory | Scanalyzed Combat Drone Bay | -7/Data Miner | Free Lgt. Regenerative Plating | -7/Data Miner | Free Exp. Terrain Scanner | -7/Data Miner | Free Exp. ECM Suite | -7/Data Miner | Free Beamcaster | -6/Zion | Free Riot Gun | -6/Zion | Free Hvy. Riot Gun | -6/Zion | Free Hvy. Battle Rifle | -6/Zion | Free Battle Rifle | -6/Zion | Free Slug Cannon | -6/Zion | Free Enh. Flamer | -6/Zion | Free Adv. Heavy Treads | -5/Factory | Hacked Assault Drone Bay | -4/Zhirov | Free Exp. Heat Sink | -4/Zhirov | Free Exp. Optical Array | -4/Zhirov | Free Imp. Arc Thrower | -4/Zhirov | Free Exp. Signal Interpreter | -3/Research | Hacked Robot Schematics ------------------ S-27 Virus | -7/Data Miner | Free G-50 Soldier | -7/Data Miner | Free G-67 Veteran | -7/Data Miner | Free L-41 Fighter | -7/Data Miner | Free X-72 Disruptor | -7/Data Miner | Free I-36 Angel | -7/Data Miner | Free I-47 Archangel | -7/Data Miner | Free Fabricated ------------ Armor Integrity Analyzer | x1 | -7/Factory Adv. Signal Interpreter | x2 | -7/Factory Hvy. Reactive Plating | x1 | -7/Factory Hvy. Reactive Plating | x1 | -7/Factory Armor Integrity Analyzer | x1 | -6/Factory Hvy. Reactive Plating | x1 | -6/Factory Exp. Signal Interpreter | x1 | -3/Research Hvy. Reactive Plating | x1 | -3/Research Hvy. Reactive Plating | x1 | -3/Research Hvy. Reactive Plating | x1 | -3/Research Hvy. Reactive Plating | x1 | -3/Research Alien Tech Used ----------------- Core Expander Integrated Reactor Stasis Generator Core Stripper Matter Drive Subatomic Replicator Core Cannon Transdimensional Reconstructor Integrated Heat Negator Integrity Redistributor Achievements -------------- None Challenges ------------ None Game ------ Seed SigixDerelictMachine Manual? 0 Play Time 13:49:49 Cumulative 1091.4 hours Start 2020.07.13 @ 23:25:32 End 2020.07.21 @ 23:26:05 Sessions 11 Manual Loads 0 Difficulty Rogue Special Mode None Game No. 406 Rogue 406 Adventurer 0 Explorer 0 Win Type - Total 25 Types 13/1/7/0/0/0/4 Lore% 96 Gallery% 98 Achievement% 83 Wizard Run 0 Options --------- ASCII 0 Keyboard 0 Movement Vi Keybinds 0 Fullscreen 0 Font 12/Crisp Map View 76x50 Tactical HUD 1 Map Filters NONE Filters NONE Steam 1 RUN: 76272a96-f1f7-46cb-912a-3b5525a64e06